Workbook

Sheet QuickBooks Desktop Export Tips

Sheet 2019
AF1: TOTAL
H2: Jan 19 | I2: Jan 19 | J2: Feb 19 | K2: Jan - Feb 19 | L2: Mar 19 | M2: Jan - Mar 19 | N2: Apr 19 | O2: Jan - Apr 19 | P2: May 19 | Q2: Jan - May 19 | R2: Jun 19 | S2: Jan - Jun 19 | T2: Jul 19 | U2: Jan - Jul 19 | V2: Aug 19 | W2: Jan - Aug 19 | X2: Sep 19 | Y2: Jan - Sep 19 | Z2: Oct 19 | AA2: Jan - Oct 19 | AB2: Nov 19 | AC2: Jan - Nov 19 | AD2: Dec 19 | AE2: Jan - Dec 19 | AF2: Jan - Dec 19 | AG2: Jan - Dec 19
B3: Ordinary Income/Expense
D4: Income
E5: 24000 · REVENUES-HAWKINS
F6: 24005 · PRIVATE PAY | H6: 12357.75 | I6: 12357.75 | J6: 15357.75 | K6: 27715.5 | L6: 12457.75 | M6: 40173.25 | N6: 18257.75 | O6: 58431 | P6: 17871.95 | Q6: 76302.95 | R6: 12829.95 | S6: 89132.9 | T6: 8135.8 | U6: 97268.7 | V6: 20639.55 | W6: 117908.25 | X6: 13164.2 | Y6: 131072.45 | Z6: 14337.2 | AA6: 145409.65 | AB6: 13600 | AC6: 159009.65 | AD6: 10650 | AE6: 169659.65 | AF6: =ROUND(H6+J6+L6+N6+P6+R6+T6+V6+X6+Z6+AB6+AD6,5) -> 169659.65 | AG6: 169659.65
F7: 24010 · UNITED HEALTHCARE | H7: 18381.49 | I7: 18381.49 | J7: 10196.36 | K7: 28577.85 | L7: 13209.5 | M7: 41787.35 | N7: 15474.93 | O7: 57262.28 | P7: 18995.95 | Q7: 76258.23 | R7: 13894.84 | S7: 90153.07 | T7: 20671.42 | U7: 110824.49 | V7: 9563.31 | W7: 120387.8 | X7: 14397.82 | Y7: 134785.62 | Z7: 7900.87 | AA7: 142686.49 | AB7: 14998.11 | AC7: 157684.6 | AD7: 18363.3 | AE7: 176047.9 | AF7: 176047.9 | AG7: 176047.9
F8: 24010A · CIGNA | H8: 19288.69 | I8: 19288.69 | J8: 18457.25 | K8: 37745.94 | L8: 5761.62 | M8: 43507.56 | N8: 21297.43 | O8: 64804.99 | P8: 8511.9 | Q8: 73316.89 | R8: 10004.71 | S8: 83321.6 | T8: 11209 | U8: 94530.6 | V8: 6438.28 | W8: 100968.88 | X8: 4428.88 | Y8: 105397.76 | Z8: 23946.02 | AA8: 129343.78 | AB8: 10380.43 | AC8: 139724.21 | AD8: 16139.42 | AE8: 155863.63 | AF8: 155863.63 | AG8: 155863.63 | AJ8: 20
F9: 24011 · ROOM & BOARD | H9: 15733.36 | I9: 15733.36 | J9: 14296.69 | K9: 30030.05 | L9: 16963.51 | M9: 46993.56 | N9: 16120.05 | O9: 63113.61 | P9: 16252.98 | Q9: 79366.59 | R9: 15656.75 | S9: 95023.34 | T9: 11451.53 | U9: 106474.87 | V9: 16976.23 | W9: 123451.1 | X9: 14186.81 | Y9: 137637.91 | Z9: 13230.62 | AA9: 150868.53 | AB9: 13362.33 | AC9: 164230.86 | AD9: 13096.26 | AE9: 177327.12 | AF9: 177327.12 | AG9: 177327.12
F10: 24015 · (CO-PAY) | H10: 2965.26 | I10: 2965.26 | J10: 2953.21 | K10: 5918.47 | L10: 3204.63 | M10: 9123.1 | N10: 2029.25 | O10: 11152.35 | P10: 2619.02 | Q10: 13771.37 | R10: 2603.61 | S10: 16374.98 | T10: 2421.54 | U10: 18796.52 | V10: 2895.08 | W10: 21691.6 | X10: 2690.19 | Y10: 24381.79 | Z10: 2796.95 | AA10: 27178.74 | AB10: 2690.19 | AC10: 29868.93 | AD10: 2109.48 | AE10: 31978.41 | AF10: 31978.41 | AG10: 31978.41
F11: 24030 · OTHER INCOME-HAWKINS | H11: -395 | I11: -395 | J11: 3329 | K11: 2934 | L11: 0 | M11: 2934 | N11: 0 | O11: 2934 | P11: 0 | Q11: 2934 | R11: 0 | S11: 2934 | T11: 0 | U11: 2934 | V11: 0 | W11: 2934 | X11: -910.15 | Y11: 2023.85 | Z11: -400 | AA11: 1623.85 | AB11: 271.32 | AC11: 1895.17 | AD11: 71.03 | AE11: 1966.2 | AF11: 1966.2 | AG11: 1966.2
F12: 24050 · NON REFUNDABLE DEPOSITS | H12: 0 | I12: 0 | J12: 0 | K12: 0 | L12: 1000 | M12: 1000 | N12: 0 | O12: 1000 | P12: 0 | Q12: 1000 | R12: 0 | S12: 1000 | T12: 0 | U12: 1000 | V12: 0 | W12: 1000 | X12: 0 | Y12: 1000 | Z12: 0 | AA12: 1000 | AB12: 0 | AC12: 1000 | AD12: 0 | AE12: 1000 | AF12: 1000 | AG12: 1000
E13: Total 24000 · REVENUES-HAWKINS | H13: =ROUND(SUM(H5:H12),5) -> 68331.55 | I13: 68331.55 | J13: 64590.26 | K13: 132921.81 | L13: 52597.01 | M13: 185518.82 | N13: 73179.41 | O13: 258698.23 | P13: 64251.8 | Q13: 322950.03 | R13: 54989.86 | S13: 377939.89 | T13: 53889.29 | U13: 431829.18 | V13: 56512.45 | W13: 488341.63 | X13: 47957.75 | Y13: 536299.38 | Z13: 61811.66 | AA13: 598111.04 | AB13: 55302.38 | AC13: 653413.42 | AD13: 60429.49 | AE13: 713842.91 | AF13: 713842.91 | AG13: =ROUND(SUM(AG5:AG12),5) -> 713842.91
D14: Total Income | H14: =ROUND(H4+H13,5) -> 68331.55 | I14: 68331.55 | J14: 64590.26 | K14: 132921.81 | L14: 52597.01 | M14: 185518.82 | N14: 73179.41 | O14: 258698.23 | P14: 64251.8 | Q14: 322950.03 | R14: 54989.86 | S14: 377939.89 | T14: 53889.29 | U14: 431829.18 | V14: 56512.45 | W14: 488341.63 | X14: 47957.75 | Y14: 536299.38 | Z14: 61811.66 | AA14: 598111.04 | AB14: 55302.38 | AC14: 653413.42 | AD14: 60429.49 | AE14: 713842.91 | AF14: 713842.91 | AG14: =ROUND(AG4+AG13,5) -> 713842.91
D15: Cost of Goods Sold
E16: 25000 · COST OF GOODS SOLD-HAWKINS
F17: 25005 · COST OF FOOD | H17: 3600 | I17: 3600 | J17: 2700 | K17: 6300 | L17: 3120 | M17: 9420 | N17: 3520 | O17: 12940 | P17: 4680 | Q17: 17620 | R17: 1818 | S17: 19438 | T17: 1685 | U17: 21123 | V17: 2932 | W17: 24055 | X17: 1860 | Y17: 25915 | Z17: 3233.42 | AA17: 29148.42 | AB17: 3010 | AC17: 32158.42 | AD17: 1978 | AE17: 34136.42 | AF17: =ROUND(H17+J17+L17+N17+P17+R17+T17+V17+X17+Z17+AB17+AD17,5) -> 34136.42 | AG17: 34136.42
F18: 25010 · COST OF SUPPLIES
G19: 25011 · HOUSEKEEPING | H19: 700 | I19: 700 | J19: 400 | K19: 1100 | L19: 400 | M19: 1500 | N19: 433.33 | O19: 1933.33 | P19: 600 | Q19: 2533.33 | R19: 200 | S19: 2733.33 | T19: 400 | U19: 3133.33 | V19: 200 | W19: 3333.33 | X19: 200 | Y19: 3533.33 | Z19: 600 | AA19: 4133.33 | AB19: 200.57 | AC19: 4333.9 | AD19: 620 | AE19: 4953.9 | AF19: =ROUND(H19+J19+L19+N19+P19+R19+T19+V19+X19+Z19+AB19+AD19,5) -> 4953.9 | AG19: 4953.9
G20: 25012 · LAUNDRY SUPPLIES | H20: 80 | I20: 80 | J20: 80 | K20: 160 | L20: 80 | M20: 240 | N20: 113.33 | O20: 353.33 | P20: 120 | Q20: 473.33 | R20: 40 | S20: 513.33 | T20: 80 | U20: 593.33 | V20: 40 | W20: 633.33 | X20: 40 | Y20: 673.33 | Z20: 230 | AA20: 903.33 | AB20: 0 | AC20: 903.33 | AD20: 750 | AE20: 1653.33 | AF20: 1653.33 | AG20: 1653.33
G21: 25013 · MEDICAL SUPPLIES | H21: 550 | I21: 550 | J21: 550 | K21: 1100 | L21: 550 | M21: 1650 | N21: 583.34 | O21: 2233.34 | P21: 825 | Q21: 3058.34 | R21: 275 | S21: 3333.34 | T21: 550 | U21: 3883.34 | V21: 0 | W21: 3883.34 | X21: 275 | Y21: 4158.34 | Z21: 700 | AA21: 4858.34 | AB21: 0 | AC21: 4858.34 | AD21: 2018.29 | AE21: 6876.63 | AF21: 6876.63 | AG21: 6876.63
G22: 25014 · DIETARY SUPPLIES | H22: 0 | I22: 0 | J22: 0 | K22: 0 | L22: 0 | M22: 0 | N22: 0 | O22: 0 | P22: 0 | Q22: 0 | R22: 0 | S22: 0 | T22: 0 | U22: 0 | V22: 0 | W22: 0 | X22: 0 | Y22: 0 | Z22: 0 | AA22: 0 | AB22: 0 | AC22: 0 | AD22: 335 | AE22: 335 | AF22: 335 | AG22: 335
F23: Total 25010 · COST OF SUPPLIES | H23: =ROUND(SUM(H18:H22),5) -> 1330 | I23: 1330 | J23: 1030 | K23: 2360 | L23: 1030 | M23: 3390 | N23: 1130 | O23: 4520 | P23: 1545 | Q23: 6065 | R23: 515 | S23: 6580 | T23: 1030 | U23: 7610 | V23: 240 | W23: 7850 | X23: 515 | Y23: 8365 | Z23: 1530 | AA23: 9895 | AB23: 200.57 | AC23: 10095.57 | AD23: 3723.29 | AE23: 13818.86 | AF23: 13818.86 | AG23: =ROUND(SUM(AG18:AG22),5) -> 13818.86
E24: Total 25000 · COST OF GOODS SOLD-HAWKINS | H24: =ROUND(SUM(H16:H17)+H23,5) -> 4930 | I24: 4930 | J24: 3730 | K24: 8660 | L24: 4150 | M24: 12810 | N24: 4650 | O24: 17460 | P24: 6225 | Q24: 23685 | R24: 2333 | S24: 26018 | T24: 2715 | U24: 28733 | V24: 3172 | W24: 31905 | X24: 2375 | Y24: 34280 | Z24: 4763.42 | AA24: 39043.42 | AB24: 3210.57 | AC24: 42253.99 | AD24: 5701.29 | AE24: 47955.28 | AF24: 47955.28 | AG24: =ROUND(SUM(AG16:AG17)+AG23,5) -> 47955.28
D25: Total COGS | H25: =ROUND(H15+H24,5) -> 4930 | I25: 4930 | J25: 3730 | K25: 8660 | L25: 4150 | M25: 12810 | N25: 4650 | O25: 17460 | P25: 6225 | Q25: 23685 | R25: 2333 | S25: 26018 | T25: 2715 | U25: 28733 | V25: 3172 | W25: 31905 | X25: 2375 | Y25: 34280 | Z25: 4763.42 | AA25: 39043.42 | AB25: 3210.57 | AC25: 42253.99 | AD25: 5701.29 | AE25: 47955.28 | AF25: 47955.28 | AG25: =ROUND(AG15+AG24,5) -> 47955.28
C26: Gross Profit | H26: =ROUND(H14-H25,5) -> 63401.55 | I26: 63401.55 | J26: 60860.26 | K26: 124261.81 | L26: 48447.01 | M26: 172708.82 | N26: 68529.41 | O26: 241238.23 | P26: 58026.8 | Q26: 299265.03 | R26: 52656.86 | S26: 351921.89 | T26: 51174.29 | U26: 403096.18 | V26: 53340.45 | W26: 456436.63 | X26: 45582.75 | Y26: 502019.38 | Z26: 57048.24 | AA26: 559067.62 | AB26: 52091.81 | AC26: 611159.43 | AD26: 54728.2 | AE26: 665887.63 | AF26: 665887.63 | AG26: =ROUND(AG14-AG25,5) -> 665887.63
D27: Expense
E28: HAWKINS
F29: 26140 · CONTRACT SERVICES
G30: 26115 · INSPECTION SMOKE/FIRE ALARMS | H30: 0 | I30: 0 | J30: 0 | K30: 0 | L30: 0 | M30: 0 | N30: 0 | O30: 0 | P30: 0 | Q30: 0 | R30: 0 | S30: 0 | T30: 0 | U30: 0 | V30: 0 | W30: 0 | X30: 0 | Y30: 0 | Z30: 0 | AA30: 0 | AB30: 0 | AC30: 0 | AD30: 300 | AE30: 300 | AF30: =ROUND(H30+J30+L30+N30+P30+R30+T30+V30+X30+Z30+AB30+AD30,5) -> 300 | AG30: 300
G31: 26116 · STATE INSPECTION SPRINKLERS | H31: 0 | I31: 0 | J31: 0 | K31: 0 | L31: 0 | M31: 0 | N31: 0 | O31: 0 | P31: 0 | Q31: 0 | R31: 0 | S31: 0 | T31: 0 | U31: 0 | V31: 0 | W31: 0 | X31: 0 | Y31: 0 | Z31: 0 | AA31: 0 | AB31: 0 | AC31: 0 | AD31: 2850 | AE31: 2850 | AF31: 2850 | AG31: 2850
G32: 26119 · BIO HAZARD | H32: 300 | I32: 300 | J32: 300 | K32: 600 | L32: 300 | M32: 900 | N32: 300 | O32: 1200 | P32: 450 | Q32: 1650 | R32: 150 | S32: 1800 | T32: 300 | U32: 2100 | V32: 0 | W32: 2100 | X32: 150 | Y32: 2250 | Z32: 300 | AA32: 2550 | AB32: 150 | AC32: 2700 | AD32: 0 | AE32: 2700 | AF32: 2700 | AG32: 2700
G33: 26125 · PLUMBING CONTRACT SVCS | H33: 200 | I33: 200 | J33: 0 | K33: 200 | L33: 0 | M33: 200 | N33: 0 | O33: 200 | P33: 0 | Q33: 200 | R33: 0 | S33: 200 | T33: 0 | U33: 200 | V33: 0 | W33: 200 | X33: 0 | Y33: 200 | Z33: 0 | AA33: 200 | AB33: 0 | AC33: 200 | AD33: 0 | AE33: 200 | AF33: 200 | AG33: 200
G34: 26126 · ELECTRICAL CONTRACT SVCS | H34: 0 | I34: 0 | J34: 0 | K34: 0 | L34: 0 | M34: 0 | N34: 0 | O34: 0 | P34: 0 | Q34: 0 | R34: 0 | S34: 0 | T34: 0 | U34: 0 | V34: 700 | W34: 700 | X34: 0 | Y34: 700 | Z34: 0 | AA34: 700 | AB34: 0 | AC34: 700 | AD34: 0 | AE34: 700 | AF34: 700 | AG34: 700
G35: 26127 · OTHER CONTRACTUAL SVCS | H35: 198.43 | I35: 198.43 | J35: 198.86 | K35: 397.29 | L35: 198.86 | M35: 596.15 | N35: 198.86 | O35: 795.01 | P35: 623.29 | Q35: 1418.3 | R35: 99.43 | S35: 1517.73 | T35: 198.86 | U35: 1716.59 | V35: 99.43 | W35: 1816.02 | X35: 99.43 | Y35: 1915.45 | Z35: 458.86 | AA35: 2374.31 | AB35: 99.43 | AC35: 2473.74 | AD35: 250 | AE35: 2723.74 | AF35: 2723.74 | AG35: 2723.74
G36: 26141 · MONITORING | H36: 0 | I36: 0 | J36: 0 | K36: 0 | L36: 0 | M36: 0 | N36: 0 | O36: 0 | P36: 0 | Q36: 0 | R36: 1514.28 | S36: 1514.28 | T36: 0 | U36: 1514.28 | V36: 0 | W36: 1514.28 | X36: 0 | Y36: 1514.28 | Z36: 0 | AA36: 1514.28 | AB36: 0 | AC36: 1514.28 | AD36: 0 | AE36: 1514.28 | AF36: 1514.28 | AG36: 1514.28
G37: 26142 · LANDSCAPE MAINTENANCE | H37: 100 | I37: 100 | J37: 200 | K37: 300 | L37: 200 | M37: 500 | N37: 200 | O37: 700 | P37: 300 | Q37: 1000 | R37: 100 | S37: 1100 | T37: 200 | U37: 1300 | V37: 0 | W37: 1300 | X37: 100 | Y37: 1400 | Z37: 200 | AA37: 1600 | AB37: 0 | AC37: 1600 | AD37: 0 | AE37: 1600 | AF37: 1600 | AG37: 1600
G38: 26145 · HOUSEKEEPING/LAUNDRY | H38: 0 | I38: 0 | J38: 0 | K38: 0 | L38: 0 | M38: 0 | N38: 0 | O38: 0 | P38: 0 | Q38: 0 | R38: 0 | S38: 0 | T38: 0 | U38: 0 | V38: 0 | W38: 0 | X38: 0 | Y38: 0 | Z38: 0 | AA38: 0 | AB38: 350 | AC38: 350 | AD38: 0 | AE38: 350 | AF38: 350 | AG38: 350
G39: 26147 · CONTRACT LABOR | H39: 1789.88 | I39: 1789.88 | J39: 1832.63 | K39: 3622.51 | L39: 2416.69 | M39: 6039.2 | N39: 1870.88 | O39: 7910.08 | P39: 2812.51 | Q39: 10722.59 | R39: 2345 | S39: 13067.59 | T39: 2581.25 | U39: 15648.84 | V39: 2435 | W39: 18083.84 | X39: 2692.67 | Y39: 20776.51 | Z39: 2020.5 | AA39: 22797.01 | AB39: 4184.7 | AC39: 26981.71 | AD39: 2624.38 | AE39: 29606.09 | AF39: 29606.09 | AG39: 29606.09
F40: Total 26140 · CONTRACT SERVICES | H40: =ROUND(SUM(H29:H39),5) -> 2588.31 | I40: 2588.31 | J40: 2531.49 | K40: 5119.8 | L40: 3115.55 | M40: 8235.35 | N40: 2569.74 | O40: 10805.09 | P40: 4185.8 | Q40: 14990.89 | R40: 4208.71 | S40: 19199.6 | T40: 3280.11 | U40: 22479.71 | V40: 3234.43 | W40: 25714.14 | X40: 3042.1 | Y40: 28756.24 | Z40: 2979.36 | AA40: 31735.6 | AB40: 4784.13 | AC40: 36519.73 | AD40: 6024.38 | AE40: 42544.11 | AF40: 42544.11 | AG40: =ROUND(SUM(AG29:AG39),5) -> 42544.11
F41: 26149 · DEBT SERVICE-ISLAND TIME CAPITA | H41: 14022.8 | I41: 14022.8 | J41: 14022.8 | K41: 28045.6 | L41: 12464.8 | M41: 40510.4 | N41: 1558 | O41: 42068.4 | P41: 1558 | Q41: 43626.4 | R41: 0 | S41: 43626.4 | T41: 14022.8 | U41: 57649.2 | V41: 14023 | W41: 71672.2 | X41: 0 | Y41: 71672.2 | Z41: 14023 | AA41: 85695.2 | AB41: 29604 | AC41: 115299.2 | AD41: 14023 | AE41: 129322.2 | AF41: 129322.2 | AG41: 129322.2
E42: Total HAWKINS | H42: =ROUND(H28+SUM(H40:H41),5) -> 16611.11 | I42: 16611.11 | J42: 16554.29 | K42: 33165.4 | L42: 15580.35 | M42: 48745.75 | N42: 4127.74 | O42: 52873.49 | P42: 5743.8 | Q42: 58617.29 | R42: 4208.71 | S42: 62826 | T42: 17302.91 | U42: 80128.91 | V42: 17257.43 | W42: 97386.34 | X42: 3042.1 | Y42: 100428.44 | Z42: 17002.36 | AA42: 117430.8 | AB42: 34388.13 | AC42: 151818.93 | AD42: 20047.38 | AE42: 171866.31 | AF42: 171866.31 | AG42: =ROUND(AG28+SUM(AG40:AG41),5) -> 171866.31
E43: 25590 · AUTO
F44: 25595 · FUEL | H44: 300 | I44: 300 | J44: 300 | K44: 600 | L44: 300 | M44: 900 | N44: 300 | O44: 1200 | P44: 450 | Q44: 1650 | R44: 150 | S44: 1800 | T44: 300 | U44: 2100 | V44: 100 | W44: 2200 | X44: 150 | Y44: 2350 | Z44: 300 | AA44: 2650 | AB44: 150 | AC44: 2800 | AD44: 0 | AE44: 2800 | AF44: =ROUND(H44+J44+L44+N44+P44+R44+T44+V44+X44+Z44+AB44+AD44,5) -> 2800 | AG44: 2800
E45: Total 25590 · AUTO | H45: =ROUND(SUM(H43:H44),5) -> 300 | I45: 300 | J45: 300 | K45: 600 | L45: 300 | M45: 900 | N45: 300 | O45: 1200 | P45: 450 | Q45: 1650 | R45: 150 | S45: 1800 | T45: 300 | U45: 2100 | V45: 100 | W45: 2200 | X45: 150 | Y45: 2350 | Z45: 300 | AA45: 2650 | AB45: 150 | AC45: 2800 | AD45: 0 | AE45: 2800 | AF45: =ROUND(H45+J45+L45+N45+P45+R45+T45+V45+X45+Z45+AB45+AD45,5) -> 2800 | AG45: =ROUND(SUM(AG43:AG44),5) -> 2800
E46: 26180 · INSURANCE
F47: 26181 · PROPERTY INSURANCE | H47: 2368.81 | I47: 2368.81 | J47: 0 | K47: 2368.81 | L47: 864.42 | M47: 3233.23 | N47: 907.64 | O47: 4140.87 | P47: 864.42 | Q47: 5005.29 | R47: 919.64 | S47: 5924.93 | T47: 907.64 | U47: 6832.57 | V47: 907.64 | W47: 7740.21 | X47: 0 | Y47: 7740.21 | Z47: 1787.06 | AA47: 9527.27 | AB47: 917.64 | AC47: 10444.91 | AD47: 0 | AE47: 10444.91 | AF47: =ROUND(H47+J47+L47+N47+P47+R47+T47+V47+X47+Z47+AB47+AD47,5) -> 10444.91 | AG47: 10444.91
F48: 26182 · GENERAL LIABILITY INSURANCE | H48: 1375.08 | I48: 1375.08 | J48: 0 | K48: 1375.08 | L48: 3341.99 | M48: 4717.07 | N48: 0 | O48: 4717.07 | P48: 708.79 | Q48: 5425.86 | R48: 708.79 | S48: 6134.65 | T48: 708.79 | U48: 6843.44 | V48: 708.79 | W48: 7552.23 | X48: 0 | Y48: 7552.23 | Z48: 0 | AA48: 7552.23 | AB48: 0 | AC48: 7552.23 | AD48: -1510.67 | AE48: 6041.56 | AF48: =ROUND(H48+J48+L48+N48+P48+R48+T48+V48+X48+Z48+AB48+AD48,5) -> 6041.56 | AG48: 6041.56
E49: Total 26180 · INSURANCE | H49: =ROUND(SUM(H46:H48),5) -> 3743.89 | I49: 3743.89 | J49: 0 | K49: 3743.89 | L49: 4206.41 | M49: 7950.3 | N49: 907.64 | O49: 8857.94 | P49: 1573.21 | Q49: 10431.15 | R49: 1628.43 | S49: 12059.58 | T49: 1616.43 | U49: 13676.01 | V49: 1616.43 | W49: 15292.44 | X49: 0 | Y49: 15292.44 | Z49: 1787.06 | AA49: 17079.5 | AB49: 917.64 | AC49: 17997.14 | AD49: -1510.67 | AE49: 16486.47 | AF49: =ROUND(H49+J49+L49+N49+P49+R49+T49+V49+X49+Z49+AB49+AD49,5) -> 16486.47 | AG49: =ROUND(SUM(AG46:AG48),5) -> 16486.47
E50: 26200 · INTEREST EXPENSE-BUILDING LOAN | H50: 0 | I50: 0 | J50: 0 | K50: 0 | L50: 0 | M50: 0 | N50: 0 | O50: 0 | P50: 0 | Q50: 0 | R50: 0 | S50: 0 | T50: 0 | U50: 0 | V50: 0 | W50: 0 | X50: 0 | Y50: 0 | Z50: 0 | AA50: 0 | AB50: 0 | AC50: 0 | AD50: 14023 | AE50: 14023 | AF50: =ROUND(H50+J50+L50+N50+P50+R50+T50+V50+X50+Z50+AB50+AD50,5) -> 14023 | AG50: 14023
E51: 26270 · PROFESSIONAL FEES
F52: 26284 · COST REPORTS | H52: 558 | I52: 558 | J52: 558 | K52: 1116 | L52: 558 | M52: 1674 | N52: 558 | O52: 2232 | P52: 258.28 | Q52: 2490.28 | R52: 558 | S52: 3048.28 | T52: 558 | U52: 3606.28 | V52: 558 | W52: 4164.28 | X52: 558 | Y52: 4722.28 | Z52: 558 | AA52: 5280.28 | AB52: 558 | AC52: 5838.28 | AD52: 558 | AE52: 6396.28 | AF52: =ROUND(H52+J52+L52+N52+P52+R52+T52+V52+X52+Z52+AB52+AD52,5) -> 6396.28 | AG52: 6396.28
F53: 26288 · TAX RETURN PREPARATION | H53: 0 | I53: 0 | J53: 360 | K53: 360 | L53: 0 | M53: 360 | N53: 0 | O53: 360 | P53: 450 | Q53: 810 | R53: 0 | S53: 810 | T53: 0 | U53: 810 | V53: 0 | W53: 810 | X53: 0 | Y53: 810 | Z53: 0 | AA53: 810 | AB53: 0 | AC53: 810 | AD53: 0 | AE53: 810 | AF53: =ROUND(H53+J53+L53+N53+P53+R53+T53+V53+X53+Z53+AB53+AD53,5) -> 810 | AG53: 810
F54: 26289 · ACCOUNTING | H54: 1375 | I54: 1375 | J54: 1350 | K54: 2725 | L54: 1350 | M54: 4075 | N54: 1350 | O54: 5425 | P54: 1380 | Q54: 6805 | R54: 1352.5 | S54: 8157.5 | T54: 1300 | U54: 9457.5 | V54: 1351 | W54: 10808.5 | X54: 1350 | Y54: 12158.5 | Z54: 1350 | AA54: 13508.5 | AB54: 1350 | AC54: 14858.5 | AD54: 1350 | AE54: 16208.5 | AF54: =ROUND(H54+J54+L54+N54+P54+R54+T54+V54+X54+Z54+AB54+AD54,5) -> 16208.5 | AG54: 16208.5
E55: Total 26270 · PROFESSIONAL FEES | H55: =ROUND(SUM(H51:H54),5) -> 1933 | I55: 1933 | J55: 2268 | K55: 4201 | L55: 1908 | M55: 6109 | N55: 1908 | O55: 8017 | P55: 2088.28 | Q55: 10105.28 | R55: 1910.5 | S55: 12015.78 | T55: 1858 | U55: 13873.78 | V55: 1909 | W55: 15782.78 | X55: 1908 | Y55: 17690.78 | Z55: 1908 | AA55: 19598.78 | AB55: 1908 | AC55: 21506.78 | AD55: 1908 | AE55: 23414.78 | AF55: =ROUND(H55+J55+L55+N55+P55+R55+T55+V55+X55+Z55+AB55+AD55,5) -> 23414.78 | AG55: =ROUND(SUM(AG51:AG54),5) -> 23414.78
E56: 26300 · REPAIRS & MAINTENANCE
F57: 26310 · HVAC | H57: 0 | I57: 0 | J57: 0 | K57: 0 | L57: 0 | M57: 0 | N57: 0 | O57: 0 | P57: 500 | Q57: 500 | R57: 500 | S57: 1000 | T57: 1000 | U57: 2000 | V57: 500 | W57: 2500 | X57: 240 | Y57: 2740 | Z57: 1000 | AA57: 3740 | AB57: 0 | AC57: 3740 | AD57: 0 | AE57: 3740 | AF57: =ROUND(H57+J57+L57+N57+P57+R57+T57+V57+X57+Z57+AB57+AD57,5) -> 3740 | AG57: 3740
F58: 26350 · BUILDING MAINTENANCE | H58: 200 | I58: 200 | J58: 0 | K58: 200 | L58: 0 | M58: 200 | N58: 0 | O58: 200 | P58: 500 | Q58: 700 | R58: 0 | S58: 700 | T58: 0 | U58: 700 | V58: 71.74 | W58: 771.74 | X58: 203.57 | Y58: 975.31 | Z58: 841.04 | AA58: 1816.35 | AB58: 0 | AC58: 1816.35 | AD58: 0 | AE58: 1816.35 | AF58: =ROUND(H58+J58+L58+N58+P58+R58+T58+V58+X58+Z58+AB58+AD58,5) -> 1816.35 | AG58: 1816.35
F59: 26360 · PAINT | H59: 0 | I59: 0 | J59: 0 | K59: 0 | L59: 0 | M59: 0 | N59: 0 | O59: 0 | P59: 0 | Q59: 0 | R59: 0 | S59: 0 | T59: 0 | U59: 0 | V59: 0 | W59: 0 | X59: 0 | Y59: 0 | Z59: 0 | AA59: 0 | AB59: 500 | AC59: 500 | AD59: 0 | AE59: 500 | AF59: =ROUND(H59+J59+L59+N59+P59+R59+T59+V59+X59+Z59+AB59+AD59,5) -> 500 | AG59: 500
E60: Total 26300 · REPAIRS & MAINTENANCE | H60: =ROUND(SUM(H56:H59),5) -> 200 | I60: 200 | J60: 0 | K60: 200 | L60: 0 | M60: 200 | N60: 0 | O60: 200 | P60: 1000 | Q60: 1200 | R60: 500 | S60: 1700 | T60: 1000 | U60: 2700 | V60: 571.74 | W60: 3271.74 | X60: 443.57 | Y60: 3715.31 | Z60: 1841.04 | AA60: 5556.35 | AB60: 500 | AC60: 6056.35 | AD60: 0 | AE60: 6056.35 | AF60: =ROUND(H60+J60+L60+N60+P60+R60+T60+V60+X60+Z60+AB60+AD60,5) -> 6056.35 | AG60: =ROUND(SUM(AG56:AG59),5) -> 6056.35
E61: 26550 · OFFICE COST
F62: 26551 · OFFICE SUPPLIES | H62: 184 | I62: 184 | J62: 336.45 | K62: 520.45 | L62: 284 | M62: 804.45 | N62: 354.45 | O62: 1158.9 | P62: 426 | Q62: 1584.9 | R62: 161.49 | S62: 1746.39 | T62: 284 | U62: 2030.39 | V62: 0 | W62: 2030.39 | X62: 248.68 | Y62: 2279.07 | Z62: 284 | AA62: 2563.07 | AB62: 78.88 | AC62: 2641.95 | AD62: 0 | AE62: 2641.95 | AF62: =ROUND(H62+J62+L62+N62+P62+R62+T62+V62+X62+Z62+AB62+AD62,5) -> 2641.95 | AG62: 2641.95
F63: 26553 · COPIER USAGE | H63: 0 | I63: 0 | J63: 0 | K63: 0 | L63: 0 | M63: 0 | N63: 0 | O63: 0 | P63: 407.18 | Q63: 407.18 | R63: 0 | S63: 407.18 | T63: 0 | U63: 407.18 | V63: 0 | W63: 407.18 | X63: 0 | Y63: 407.18 | Z63: 0 | AA63: 407.18 | AB63: 0 | AC63: 407.18 | AD63: 0 | AE63: 407.18 | AF63: 407.18 | AG63: 407.18
F64: 26554 · COMPUTERS | H64: 0 | I64: 0 | J64: 0 | K64: 0 | L64: 0 | M64: 0 | N64: 865.12 | O64: 865.12 | P64: 0 | Q64: 865.12 | R64: 0 | S64: 865.12 | T64: 0 | U64: 865.12 | V64: 0 | W64: 865.12 | X64: 0 | Y64: 865.12 | Z64: 584.2 | AA64: 1449.32 | AB64: 0 | AC64: 1449.32 | AD64: 0 | AE64: 1449.32 | AF64: 1449.32 | AG64: 1449.32
F65: 26555 · TELEPHONE | H65: 0 | I65: 0 | J65: 2550.57 | K65: 2550.57 | L65: 0 | M65: 2550.57 | N65: 2565.28 | O65: 5115.85 | P65: 0 | Q65: 5115.85 | R65: 2581.01 | S65: 7696.86 | T65: 0 | U65: 7696.86 | V65: 2436.79 | W65: 10133.65 | X65: 0 | Y65: 10133.65 | Z65: 0 | AA65: 10133.65 | AB65: 1346.58 | AC65: 11480.23 | AD65: 0 | AE65: 11480.23 | AF65: 11480.23 | AG65: 11480.23
F66: 26558 · BANK CHARGES | H66: 854.75 | I66: 854.75 | J66: 1278.75 | K66: 2133.5 | L66: 458 | M66: 2591.5 | N66: 582.79 | O66: 3174.29 | P66: 1030.5 | Q66: 4204.79 | R66: 1142.5 | S66: 5347.29 | T66: 970 | U66: 6317.29 | V66: 1047.98 | W66: 7365.27 | X66: 730.33 | Y66: 8095.6 | Z66: 1067.86 | AA66: 9163.46 | AB66: 408.57 | AC66: 9572.03 | AD66: 367 | AE66: 9939.03 | AF66: 9939.03 | AG66: 9939.03
F67: 26561 · LICENSING | H67: 0 | I67: 0 | J67: 0 | K67: 0 | L67: 0 | M67: 0 | N67: 0 | O67: 0 | P67: 300 | Q67: 300 | R67: 0 | S67: 300 | T67: 0 | U67: 300 | V67: 0 | W67: 300 | X67: 0 | Y67: 300 | Z67: 0 | AA67: 300 | AB67: 0 | AC67: 300 | AD67: 0 | AE67: 300 | AF67: 300 | AG67: 300
F68: 26562 · INTERNET CONNECTIONS | H68: 337.15 | I68: 337.15 | J68: 1382.09 | K68: 1719.24 | L68: 160.25 | M68: 1879.49 | N68: 889.87 | O68: 2769.36 | P68: -352.92 | Q68: 2416.44 | R68: 160.81 | S68: 2577.25 | T68: 815.63 | U68: 3392.88 | V68: 0 | W68: 3392.88 | X68: 0 | Y68: 3392.88 | Z68: 0 | AA68: 3392.88 | AB68: 760.88 | AC68: 4153.76 | AD68: 708.05 | AE68: 4861.81 | AF68: 4861.81 | AG68: 4861.81
F69: 26567 · POSTAGE EXPENSE | H69: 0 | I69: 0 | J69: 0 | K69: 0 | L69: 0 | M69: 0 | N69: 0 | O69: 0 | P69: 60.1 | Q69: 60.1 | R69: 0 | S69: 60.1 | T69: 0 | U69: 60.1 | V69: 0 | W69: 60.1 | X69: 50 | Y69: 110.1 | Z69: 125 | AA69: 235.1 | AB69: 125 | AC69: 360.1 | AD69: 47 | AE69: 407.1 | AF69: 407.1 | AG69: 407.1
F70: 26568 · TRANSPORTATION EXPENSE | H70: 0 | I70: 0 | J70: 0 | K70: 0 | L70: 0 | M70: 0 | N70: 34.2 | O70: 34.2 | P70: 0 | Q70: 34.2 | R70: 0 | S70: 34.2 | T70: 0 | U70: 34.2 | V70: 0 | W70: 34.2 | X70: 190.6 | Y70: 224.8 | Z70: 0 | AA70: 224.8 | AB70: 0 | AC70: 224.8 | AD70: 0 | AE70: 224.8 | AF70: 224.8 | AG70: 224.8
F71: 26574 · PRINTER SUPPLIES | H71: 0 | I71: 0 | J71: 0 | K71: 0 | L71: 0 | M71: 0 | N71: 0 | O71: 0 | P71: 0 | Q71: 0 | R71: 0 | S71: 0 | T71: 0 | U71: 0 | V71: 0 | W71: 0 | X71: 0 | Y71: 0 | Z71: 0 | AA71: 0 | AB71: 322.6 | AC71: 322.6 | AD71: 0 | AE71: 322.6 | AF71: 322.6 | AG71: 322.6
E72: Total 26550 · OFFICE COST | H72: =ROUND(SUM(H61:H71),5) -> 1375.9 | I72: 1375.9 | J72: 5547.86 | K72: 6923.76 | L72: 902.25 | M72: 7826.01 | N72: 5291.71 | O72: 13117.72 | P72: 1870.86 | Q72: 14988.58 | R72: 4045.81 | S72: 19034.39 | T72: 2069.63 | U72: 21104.02 | V72: 3484.77 | W72: 24588.79 | X72: 1219.61 | Y72: 25808.4 | Z72: 2061.06 | AA72: 27869.46 | AB72: 3042.51 | AC72: 30911.97 | AD72: 1122.05 | AE72: 32034.02 | AF72: 32034.02 | AG72: =ROUND(SUM(AG61:AG71),5) -> 32034.02
E73: 26600 · PAYROLL EXPENSES
F74: 26601 · MC EXPENSE | H74: 455.77 | I74: 455.77 | J74: 476.35 | K74: 932.12 | L74: 614.38 | M74: 1546.5 | N74: 489.47 | O74: 2035.97 | P74: 732.53 | Q74: 2768.5 | R74: 518.71 | S74: 3287.21 | T74: 533.86 | U74: 3821.07 | V74: 507.21 | W74: 4328.28 | X74: 471.48 | Y74: 4799.76 | Z74: 431.76 | AA74: 5231.52 | AB74: 523.44 | AC74: 5754.96 | AD74: 317.87 | AE74: 6072.83 | AF74: =ROUND(H74+J74+L74+N74+P74+R74+T74+V74+X74+Z74+AB74+AD74,5) -> 6072.83 | AG74: 6072.83
F75: 26602 · SS EXPENSE | H75: 1948.88 | I75: 1948.88 | J75: 2036.73 | K75: 3985.61 | L75: 2627.06 | M75: 6612.67 | N75: 2092.78 | O75: 8705.45 | P75: 3132.05 | Q75: 11837.5 | R75: 2217.91 | S75: 14055.41 | T75: 2282.85 | U75: 16338.26 | V75: 2168.78 | W75: 18507.04 | X75: 2015.9 | Y75: 20522.94 | Z75: 1846.16 | AA75: 22369.1 | AB75: 2238.08 | AC75: 24607.18 | AD75: 1359.2 | AE75: 25966.38 | AF75: 25966.38 | AG75: 25966.38
F76: 26603 · TWC EXPENSE | H76: 678.97 | I76: 678.97 | J76: 709.59 | K76: 1388.56 | L76: 915.19 | M76: 2303.75 | N76: 663.08 | O76: 2966.83 | P76: 596.69 | Q76: 3563.52 | R76: 351.48 | S76: 3915 | T76: 342.68 | U76: 4257.68 | V76: 330.66 | W76: 4588.34 | X76: 320.83 | Y76: 4909.17 | Z76: 312.3 | AA76: 5221.47 | AB76: 359.03 | AC76: 5580.5 | AD76: 257.8 | AE76: 5838.3 | AF76: 5838.3 | AG76: 5838.3
F77: 26604 · FUTA EXPENSE | H77: 188.61 | I77: 188.61 | J77: 197.09 | K77: 385.7 | L77: 248.31 | M77: 634.01 | N77: 119.4 | O77: 753.41 | P77: 109.41 | Q77: 862.82 | R77: 83.49 | S77: 946.31 | T77: 88.78 | U77: 1035.09 | V77: 91.84 | W77: 1126.93 | X77: 86.34 | Y77: 1213.27 | Z77: 77.21 | AA77: 1290.48 | AB77: 93.9 | AC77: 1384.38 | AD77: 59.47 | AE77: 1443.85 | AF77: 1443.85 | AG77: 1443.85
F78: 26625 · SALARIES & WAGES | H78: 31433.18 | I78: 31433.18 | J78: 32851.3 | K78: 64284.48 | L78: 42370.73 | M78: 106655.21 | N78: 33754.8 | O78: 140410.01 | P78: 50517.17 | Q78: 190927.18 | R78: 36594.98 | S78: 227522.16 | T78: 36820.24 | U78: 264342.4 | V78: 34980.1 | W78: 299322.5 | X78: 32514.37 | Y78: 331836.87 | Z78: 28871.16 | AA78: 360708.03 | AB78: 36098 | AC78: 396806.03 | AD78: 21922.51 | AE78: 418728.54 | AF78: 418728.54 | AG78: 418728.54
F79: 26626 · EXPENSE REIMBURSEMENT | H79: 0 | I79: 0 | J79: 16.72 | K79: 16.72 | L79: 17.86 | M79: 34.58 | N79: 0 | O79: 34.58 | P79: 24.32 | Q79: 58.9 | R79: 0 | S79: 58.9 | T79: 0 | U79: 58.9 | V79: 0 | W79: 58.9 | X79: 0 | Y79: 58.9 | Z79: 0 | AA79: 58.9 | AB79: 100 | AC79: 158.9 | AD79: 0 | AE79: 158.9 | AF79: 158.9 | AG79: 158.9
F80: 26627 · WAGE GARNISHMENTS - HAWKINS | H80: 0 | I80: 0 | J80: 0 | K80: 0 | L80: 0 | M80: 0 | N80: 0 | O80: 0 | P80: 0 | Q80: 0 | R80: 0 | S80: 0 | T80: 0 | U80: 0 | V80: 0 | W80: 0 | X80: 0 | Y80: 0 | Z80: 0 | AA80: 0 | AB80: 0 | AC80: 0 | AD80: 0 | AE80: 0 | AF80: 0 | AG80: 0
E81: Total 26600 · PAYROLL EXPENSES | H81: =ROUND(SUM(H73:H80),5) -> 34705.41 | I81: 34705.41 | J81: 36287.78 | K81: 70993.19 | L81: 46793.53 | M81: 117786.72 | N81: 37119.53 | O81: 154906.25 | P81: 55112.17 | Q81: 210018.42 | R81: 39766.57 | S81: 249784.99 | T81: 40068.41 | U81: 289853.4 | V81: 38078.59 | W81: 327931.99 | X81: 35408.92 | Y81: 363340.91 | Z81: 31538.59 | AA81: 394879.5 | AB81: 39412.45 | AC81: 434291.95 | AD81: 23916.85 | AE81: 458208.8 | AF81: 458208.8 | AG81: =ROUND(SUM(AG73:AG80),5) -> 458208.8
E82: 26820 · TAXES
F83: 26850 · PROPERTY | H83: 3263.29 | I83: 3263.29 | J83: 2001.5 | K83: 5264.79 | L83: 161.37 | M83: 5426.16 | N83: 0 | O83: 5426.16 | P83: 2339.28 | Q83: 7765.44 | R83: 0 | S83: 7765.44 | T83: 199.82 | U83: 7965.26 | V83: 0 | W83: 7965.26 | X83: 0 | Y83: 7965.26 | Z83: 0 | AA83: 7965.26 | AB83: 17852.35 | AC83: 25817.61 | AD83: 0 | AE83: 25817.61 | AF83: =ROUND(H83+J83+L83+N83+P83+R83+T83+V83+X83+Z83+AB83+AD83,5) -> 25817.61 | AG83: 25817.61
F84: 26856 · PAYROLL TAXES & PENALTIES | H84: 1609 | I84: 1609 | J84: 0 | K84: 1609 | L84: 1609 | M84: 3218 | N84: 0 | O84: 3218 | P84: 2391.89 | Q84: 5609.89 | R84: 0 | S84: 5609.89 | T84: 5093.48 | U84: 10703.37 | V84: 0 | W84: 10703.37 | X84: 0 | Y84: 10703.37 | Z84: 0 | AA84: 10703.37 | AB84: 0 | AC84: 10703.37 | AD84: 0 | AE84: 10703.37 | AF84: =ROUND(H84+J84+L84+N84+P84+R84+T84+V84+X84+Z84+AB84+AD84,5) -> 10703.37 | AG84: 10703.37
E85: Total 26820 · TAXES | H85: =ROUND(SUM(H82:H84),5) -> 4872.29 | I85: 4872.29 | J85: 2001.5 | K85: 6873.79 | L85: 1770.37 | M85: 8644.16 | N85: 0 | O85: 8644.16 | P85: 4731.17 | Q85: 13375.33 | R85: 0 | S85: 13375.33 | T85: 5293.3 | U85: 18668.63 | V85: 0 | W85: 18668.63 | X85: 0 | Y85: 18668.63 | Z85: 0 | AA85: 18668.63 | AB85: 17852.35 | AC85: 36520.98 | AD85: 0 | AE85: 36520.98 | AF85: =ROUND(H85+J85+L85+N85+P85+R85+T85+V85+X85+Z85+AB85+AD85,5) -> 36520.98 | AG85: =ROUND(SUM(AG82:AG84),5) -> 36520.98
E86: 26870 · UTILITIES
F87: 26875 · ELECTRICITY | H87: 974.79 | I87: 974.79 | J87: 2181.54 | K87: 3156.33 | L87: 1858.69 | M87: 5015.02 | N87: 2690.16 | O87: 7705.18 | P87: 2173.41 | Q87: 9878.59 | R87: 2239.5 | S87: 12118.09 | T87: 0 | U87: 12118.09 | V87: 0 | W87: 12118.09 | X87: 11448.9 | Y87: 23566.99 | Z87: 4970.49 | AA87: 28537.48 | AB87: 0 | AC87: 28537.48 | AD87: 3559.18 | AE87: 32096.66 | AF87: =ROUND(H87+J87+L87+N87+P87+R87+T87+V87+X87+Z87+AB87+AD87,5) -> 32096.66 | AG87: 32096.66
F88: 26880 · WATER | H88: 1369.39 | I88: 1369.39 | J88: 1523.59 | K88: 2892.98 | L88: 1163.76 | M88: 4056.74 | N88: 1163.76 | O88: 5220.5 | P88: 1435.92 | Q88: 6656.42 | R88: 1436.72 | S88: 8093.14 | T88: 1365.14 | U88: 9458.28 | V88: 1345.26 | W88: 10803.54 | X88: 1307.18 | Y88: 12110.72 | Z88: 1098.58 | AA88: 13209.3 | AB88: 1158.18 | AC88: 14367.48 | AD88: 1269.93 | AE88: 15637.41 | AF88: 15637.41 | AG88: 15637.41
F89: 26885 · GAS | H89: 0 | I89: 0 | J89: 1918.89 | K89: 1918.89 | L89: 0 | M89: 1918.89 | N89: 0 | O89: 1918.89 | P89: 1117.07 | Q89: 3035.96 | R89: 445.98 | S89: 3481.94 | T89: 0 | U89: 3481.94 | V89: 1616.74 | W89: 5098.68 | X89: 407.73 | Y89: 5506.41 | Z89: 0 | AA89: 5506.41 | AB89: 540.66 | AC89: 6047.07 | AD89: 1078.64 | AE89: 7125.71 | AF89: 7125.71 | AG89: 7125.71
E90: Total 26870 · UTILITIES | H90: =ROUND(SUM(H86:H89),5) -> 2344.18 | I90: 2344.18 | J90: 5624.02 | K90: 7968.2 | L90: 3022.45 | M90: 10990.65 | N90: 3853.92 | O90: 14844.57 | P90: 4726.4 | Q90: 19570.97 | R90: 4122.2 | S90: 23693.17 | T90: 1365.14 | U90: 25058.31 | V90: 2962 | W90: 28020.31 | X90: 13163.81 | Y90: 41184.12 | Z90: 6069.07 | AA90: 47253.19 | AB90: 1698.84 | AC90: 48952.03 | AD90: 5907.75 | AE90: 54859.78 | AF90: 54859.78 | AG90: =ROUND(SUM(AG86:AG89),5) -> 54859.78
D91: Total Expense | H91: =ROUND(H27+H42+H45+SUM(H49:H50)+H55+H60+H72+H81+H85+H90,5) -> 66085.78 | I91: 66085.78 | J91: 68583.45 | K91: 134669.23 | L91: 74483.36 | M91: 209152.59 | N91: 53508.54 | O91: 262661.13 | P91: 77295.89 | Q91: 339957.02 | R91: 56332.22 | S91: 396289.24 | T91: 70873.82 | U91: 467163.06 | V91: 65979.96 | W91: 533143.02 | X91: 55336.01 | Y91: 588479.03 | Z91: 62507.18 | AA91: 650986.21 | AB91: 99869.92 | AC91: 750856.13 | AD91: 65414.36 | AE91: 816270.49 | AF91: 816270.49 | AG91: =ROUND(AG27+AG42+AG45+SUM(AG49:AG50)+AG55+AG60+AG72+AG81+AG85+AG90,5) -> 816270.49
B92: Net Ordinary Income | H92: =ROUND(H3+H26-H91,5) -> -2684.23 | I92: -2684.23 | J92: -7723.19 | K92: -10407.42 | L92: -26036.35 | M92: -36443.77 | N92: 15020.87 | O92: -21422.9 | P92: -19269.09 | Q92: -40691.99 | R92: -3675.36 | S92: -44367.35 | T92: -19699.53 | U92: -64066.88 | V92: -12639.51 | W92: -76706.39 | X92: -9753.26 | Y92: -86459.65 | Z92: -5458.94 | AA92: -91918.59 | AB92: -47778.11 | AC92: -139696.7 | AD92: -10686.16 | AE92: -150382.86 | AF92: -150382.86 | AG92: =ROUND(AG3+AG26-AG91,5) -> -150382.86
A93: Net Income | H93: =H92 -> -2684.23 | I93: -2684.23 | J93: -7723.19 | K93: -10407.42 | L93: -26036.35 | M93: -36443.77 | N93: 15020.87 | O93: -21422.9 | P93: -19269.09 | Q93: -40691.99 | R93: -3675.36 | S93: -44367.35 | T93: -19699.53 | U93: -64066.88 | V93: -12639.51 | W93: -76706.39 | X93: -9753.26 | Y93: -86459.65 | Z93: -5458.94 | AA93: -91918.59 | AB93: -47778.11 | AC93: -139696.7 | AD93: -10686.16 | AE93: -150382.86 | AF93: -150382.86 | AG93: =AG92 -> -150382.86

Sheet 2020
AE1: TOTAL
G2: Jan 20 | H2: Jan 20 | I2: Feb 20 | J2: Jan - Feb 20 | K2: Mar 20 | L2: Jan - Mar 20 | M2: Apr 20 | N2: Jan - Apr 20 | O2: May 20 | P2: Jan - May 20 | Q2: Jun 20 | R2: Jan - Jun 20 | S2: Jul 20 | T2: Jan - Jul 20 | U2: Aug 20 | V2: Jan - Aug 20 | W2: Sep 20 | X2: Jan - Sep 20 | Y2: Oct 20 | Z2: Jan - Oct 20 | AA2: Nov 20 | AB2: Jan - Nov 20 | AC2: Dec 20 | AD2: Jan - Dec 20 | AE2: Jan - Dec 20 | AF2: Jan - Dec 20
A3: Ordinary Income/Expense
C4: Income
D5: 24000 · REVENUES-HAWKINS
E6: 24005 · PRIVATE PAY | G6: 10650 | H6: 10650 | I6: 16650 | J6: 27300 | K6: 10650 | L6: 37950 | M6: 6363.4 | N6: 44313.4 | O6: 10750 | P6: 55063.4 | Q6: 10750 | R6: 65813.4 | S6: 4850 | T6: 70663.4 | U6: 7850 | V6: 78513.4 | W6: 4850 | X6: 83363.4 | Y6: 4366.65 | Z6: 87730.05 | AA6: 4850 | AB6: 92580.05 | AC6: 4850 | AD6: 97430.05 | AE6: 97430.05 | AF6: 97430.05
E7: 24010 · UNITED HEALTHCARE | G7: 12827.05 | H7: 12827.05 | I7: 11760.89 | J7: 24587.94 | K7: 6010.8 | L7: 30598.74 | M7: 11851.85 | N7: 42450.59 | O7: 14202 | P7: 56652.59 | Q7: 9259.97 | R7: 65912.56 | S7: 11493.09 | T7: 77405.65 | U7: 5643.71 | V7: 83049.36 | W7: 12572.51 | X7: 95621.87 | Y7: 15971.4 | Z7: 111593.27 | AA7: 13588.01 | AB7: 125181.28 | AC7: 365 | AD7: 125546.28 | AE7: 125546.28 | AF7: 125546.28
E8: 24010A · CIGNA | G8: 10193.68 | H8: 10193.68 | I8: 9146.66 | J8: 19340.34 | K8: 13692.12 | L8: 33032.46 | M8: 16065.23 | N8: 49097.69 | O8: 14215.92 | P8: 63313.61 | Q8: 16624.63 | R8: 79938.24 | S8: 14483.36 | T8: 94421.6 | U8: 2388.58 | V8: 96810.18 | W8: 14587.42 | X8: 111397.6 | Y8: 16734.63 | Z8: 128132.23 | AA8: 5099.63 | AB8: 133231.86 | AC8: 24585.84 | AD8: 157817.7 | AE8: 157817.7 | AF8: 157817.7
E9: 24010B · CCAD | G9: 5579.45 | H9: 5579.45 | I9: 0 | J9: 5579.45 | K9: 4980.53 | L9: 10559.98 | M9: 0 | N9: 10559.98 | O9: 0 | P9: 10559.98 | Q9: 0 | R9: 10559.98 | S9: 9682.13 | T9: 20242.11 | U9: 0 | V9: 20242.11 | W9: 0 | X9: 20242.11 | Y9: -1374.86 | Z9: 18867.25 | AA9: 0 | AB9: 18867.25 | AC9: 0 | AD9: 18867.25 | AE9: 18867.25 | AF9: 18867.25
E10: 24010C · CARES ACT STIMULUS | G10: 0 | H10: 0 | I10: 0 | J10: 0 | K10: 0 | L10: 0 | M10: 114500 | N10: 114500 | O10: -25730.4 | P10: 88769.6 | Q10: 0 | R10: 88769.6 | S10: 0 | T10: 88769.6 | U10: 18071.48 | V10: 106841.08 | W10: 0 | X10: 106841.08 | Y10: 0 | Z10: 106841.08 | AA10: 0 | AB10: 106841.08 | AC10: 0 | AD10: 106841.08 | AE10: 106841.08 | AF10: 106841.08
E11: 24011 · ROOM & BOARD | G11: 12169 | H11: 12169 | I11: 14072.43 | J11: 26241.43 | K11: 13059.71 | L11: 39301.14 | M11: 7951.65 | N11: 47252.79 | O11: 18012.94 | P11: 65265.73 | Q11: 16424.16 | R11: 81689.89 | S11: 13039.65 | T11: 94729.54 | U11: 12187.29 | V11: 106916.83 | W11: 16023.18 | X11: 122940.01 | Y11: 12652.22 | Z11: 135592.23 | AA11: 12273.62 | AB11: 147865.85 | AC11: 11813.95 | AD11: 159679.8 | AE11: 159679.8 | AF11: 159679.8
E12: 24015 · (CO-PAY) | G12: 1545.94 | H12: 1545.94 | I12: 1448.51 | J12: 2994.45 | K12: 1532.82 | L12: 4527.27 | M12: 769.02 | N12: 5296.29 | O12: 2741.78 | P12: 8038.07 | Q12: 1653.91 | R12: 9691.98 | S12: 1644.38 | T12: 11336.36 | U12: 1691.71 | V12: 13028.07 | W12: 1936.16 | X12: 14964.23 | Y12: 2103.52 | Z12: 17067.75 | AA12: 2114.5 | AB12: 19182.25 | AC12: 1994.91 | AD12: 21177.16 | AE12: 21177.16 | AF12: 21177.16
E13: 24025 · CABLE INCOME- HAWKINS | G13: 0 | H13: 0 | I13: 0 | J13: 0 | K13: 0 | L13: 0 | M13: 0 | N13: 0 | O13: 0 | P13: 0 | Q13: 70.26 | R13: 70.26 | S13: 0 | T13: 70.26 | U13: 0 | V13: 70.26 | W13: 0 | X13: 70.26 | Y13: 0 | Z13: 70.26 | AA13: 0 | AB13: 70.26 | AC13: 0 | AD13: 70.26 | AE13: 70.26 | AF13: 70.26
E14: 24030 · OTHER INCOME-HAWKINS | G14: 140.48 | H14: 140.48 | I14: 472.04 | J14: 612.52 | K14: 1500 | L14: 2112.52 | M14: 1 | N14: 2113.52 | O14: 0 | P14: 2113.52 | Q14: 0 | R14: 2113.52 | S14: -1456.65 | T14: 656.87 | U14: 0 | V14: 656.87 | W14: 0 | X14: 656.87 | Y14: 1863.93 | Z14: 2520.8 | AA14: 116.61 | AB14: 2637.41 | AC14: 79.24 | AD14: 2716.65 | AE14: 2716.65 | AF14: 2716.65
D15: Total 24000 · REVENUES-HAWKINS | G15: 53105.6 | H15: 53105.6 | I15: 53550.53 | J15: 106656.13 | K15: 51425.98 | L15: 158082.11 | M15: 157502.15 | N15: 315584.26 | O15: 34192.24 | P15: 349776.5 | Q15: 54782.93 | R15: 404559.43 | S15: 53735.96 | T15: 458295.39 | U15: 47832.77 | V15: 506128.16 | W15: 49969.27 | X15: 556097.43 | Y15: 52317.49 | Z15: 608414.92 | AA15: 38042.37 | AB15: 646457.29 | AC15: 43688.94 | AD15: 690146.23 | AE15: 690146.23 | AF15: 690146.23
C16: Total Income | G16: 53105.6 | H16: 53105.6 | I16: 53550.53 | J16: 106656.13 | K16: 51425.98 | L16: 158082.11 | M16: 157502.15 | N16: 315584.26 | O16: 34192.24 | P16: 349776.5 | Q16: 54782.93 | R16: 404559.43 | S16: 53735.96 | T16: 458295.39 | U16: 47832.77 | V16: 506128.16 | W16: 49969.27 | X16: 556097.43 | Y16: 52317.49 | Z16: 608414.92 | AA16: 38042.37 | AB16: 646457.29 | AC16: 43688.94 | AD16: 690146.23 | AE16: 690146.23 | AF16: 690146.23
C17: Cost of Goods Sold
D18: 25000 · COST OF GOODS SOLD-HAWKINS
E19: 25005 · COST OF FOOD | G19: 2710 | H19: 2710 | I19: 1471.94 | J19: 4181.94 | K19: 3284.17 | L19: 7466.11 | M19: 3348.82 | N19: 10814.93 | O19: 4214.81 | P19: 15029.74 | Q19: 3682.05 | R19: 18711.79 | S19: 1728.4 | T19: 20440.19 | U19: 1914.11 | V19: 22354.3 | W19: 2039.35 | X19: 24393.65 | Y19: 2465.25 | Z19: 26858.9 | AA19: 2839.64 | AB19: 29698.54 | AC19: 1560.66 | AD19: 31259.2 | AE19: 31259.2 | AF19: 31259.2
E20: 25010 · COST OF SUPPLIES
F21: 25011 · HOUSEKEEPING | G21: 150 | H21: 150 | I21: 96.24 | J21: 246.24 | K21: 455.28 | L21: 701.52 | M21: 457.17 | N21: 1158.69 | O21: 524.11 | P21: 1682.8 | Q21: 671.67 | R21: 2354.47 | S21: 268.07 | T21: 2622.54 | U21: 368.8 | V21: 2991.34 | W21: 90.28 | X21: 3081.62 | Y21: 427.14 | Z21: 3508.76 | AA21: 306.88 | AB21: 3815.64 | AC21: -149.96 | AD21: 3665.68 | AE21: 3665.68 | AF21: 3665.68
F22: 25012 · LAUNDRY SUPPLIES | G22: 100 | H22: 100 | I22: 29.82 | J22: 129.82 | K22: 200.05 | L22: 329.87 | M22: 236.5 | N22: 566.37 | O22: 187.38 | P22: 753.75 | Q22: 186.22 | R22: 939.97 | S22: 345.61 | T22: 1285.58 | U22: 165.15 | V22: 1450.73 | W22: 80 | X22: 1530.73 | Y22: 116.33 | Z22: 1647.06 | AA22: 200 | AB22: 1847.06 | AC22: 240.32 | AD22: 2087.38 | AE22: 2087.38 | AF22: 2087.38
F23: 25013 · MEDICAL SUPPLIES | G23: 174.32 | H23: 174.32 | I23: 0 | J23: 174.32 | K23: 310.11 | L23: 484.43 | M23: 154.42 | N23: 638.85 | O23: 69.01 | P23: 707.86 | Q23: 1040.63 | R23: 1748.49 | S23: 239.32 | T23: 1987.81 | U23: 158.1 | V23: 2145.91 | W23: 40 | X23: 2185.91 | Y23: 162.9 | Z23: 2348.81 | AA23: 230 | AB23: 2578.81 | AC23: 890.03 | AD23: 3468.84 | AE23: 3468.84 | AF23: 3468.84
F24: 25014 · DIETARY SUPPLIES | G24: 0 | H24: 0 | I24: 0 | J24: 0 | K24: 88.45 | L24: 88.45 | M24: 246.14 | N24: 334.59 | O24: 208.3 | P24: 542.89 | Q24: 95.15 | R24: 638.04 | S24: 110.71 | T24: 748.75 | U24: 25 | V24: 773.75 | W24: 30.64 | X24: 804.39 | Y24: 0 | Z24: 804.39 | AA24: 0 | AB24: 804.39 | AC24: 508.28 | AD24: 1312.67 | AE24: 1312.67 | AF24: 1312.67
F25: 25010 · COST OF SUPPLIES - Other | G25: 0 | H25: 0 | I25: 0 | J25: 0 | K25: 0 | L25: 0 | M25: 0 | N25: 0 | O25: 127 | P25: 127 | Q25: 0 | R25: 127 | S25: 0 | T25: 127 | U25: 0 | V25: 127 | W25: 0 | X25: 127 | Y25: 0 | Z25: 127 | AA25: 0 | AB25: 127 | AC25: 0 | AD25: 127 | AE25: 127 | AF25: 127
E26: Total 25010 · COST OF SUPPLIES | G26: 424.32 | H26: 424.32 | I26: 126.06 | J26: 550.38 | K26: 1053.89 | L26: 1604.27 | M26: 1094.23 | N26: 2698.5 | O26: 1115.8 | P26: 3814.3 | Q26: 1993.67 | R26: 5807.97 | S26: 963.71 | T26: 6771.68 | U26: 717.05 | V26: 7488.73 | W26: 240.92 | X26: 7729.65 | Y26: 706.37 | Z26: 8436.02 | AA26: 736.88 | AB26: 9172.9 | AC26: 1488.67 | AD26: 10661.57 | AE26: 10661.57 | AF26: 10661.57
D27: Total 25000 · COST OF GOODS SOLD-HAWKINS | G27: 3134.32 | H27: 3134.32 | I27: 1598 | J27: 4732.32 | K27: 4338.06 | L27: 9070.38 | M27: 4443.05 | N27: 13513.43 | O27: 5330.61 | P27: 18844.04 | Q27: 5675.72 | R27: 24519.76 | S27: 2692.11 | T27: 27211.87 | U27: 2631.16 | V27: 29843.03 | W27: 2280.27 | X27: 32123.3 | Y27: 3171.62 | Z27: 35294.92 | AA27: 3576.52 | AB27: 38871.44 | AC27: 3049.33 | AD27: 41920.77 | AE27: 41920.77 | AF27: 41920.77
C28: Total COGS | G28: 3134.32 | H28: 3134.32 | I28: 1598 | J28: 4732.32 | K28: 4338.06 | L28: 9070.38 | M28: 4443.05 | N28: 13513.43 | O28: 5330.61 | P28: 18844.04 | Q28: 5675.72 | R28: 24519.76 | S28: 2692.11 | T28: 27211.87 | U28: 2631.16 | V28: 29843.03 | W28: 2280.27 | X28: 32123.3 | Y28: 3171.62 | Z28: 35294.92 | AA28: 3576.52 | AB28: 38871.44 | AC28: 3049.33 | AD28: 41920.77 | AE28: 41920.77 | AF28: 41920.77
B29: Gross Profit | G29: 49971.28 | H29: 49971.28 | I29: 51952.53 | J29: 101923.81 | K29: 47087.92 | L29: 149011.73 | M29: 153059.1 | N29: 302070.83 | O29: 28861.63 | P29: 330932.46 | Q29: 49107.21 | R29: 380039.67 | S29: 51043.85 | T29: 431083.52 | U29: 45201.61 | V29: 476285.13 | W29: 47689 | X29: 523974.13 | Y29: 49145.87 | Z29: 573120 | AA29: 34465.85 | AB29: 607585.85 | AC29: 40639.61 | AD29: 648225.46 | AE29: 648225.46 | AF29: 648225.46
C30: Expense
D31: HAWKINS
E32: 26140 · CONTRACT SERVICES
F33: 26115 · INSPECTION SMOKE/FIRE ALARMS | G33: 607.1 | H33: 607.1 | I33: 0 | J33: 607.1 | K33: 0 | L33: 607.1 | M33: 0 | N33: 607.1 | O33: 0 | P33: 607.1 | Q33: 0 | R33: 607.1 | S33: 0 | T33: 607.1 | U33: 800 | V33: 1407.1 | W33: 0 | X33: 1407.1 | Y33: 0 | Z33: 1407.1 | AA33: 0 | AB33: 1407.1 | AC33: 0 | AD33: 1407.1 | AE33: 1407.1 | AF33: 1407.1
F34: 26119 · BIO HAZARD | G34: 0 | H34: 0 | I34: 0 | J34: 0 | K34: 0 | L34: 0 | M34: 0 | N34: 0 | O34: 0 | P34: 0 | Q34: 0 | R34: 0 | S34: 0 | T34: 0 | U34: 300 | V34: 300 | W34: 230 | X34: 530 | Y34: 0 | Z34: 530 | AA34: 0 | AB34: 530 | AC34: 0 | AD34: 530 | AE34: 530 | AF34: 530
F35: 26127 · OTHER CONTRACTUAL SVCS | G35: 518.79 | H35: 518.79 | I35: 0 | J35: 518.79 | K35: 0 | L35: 518.79 | M35: 0 | N35: 518.79 | O35: 740 | P35: 1258.79 | Q35: 0 | R35: 1258.79 | S35: 0 | T35: 1258.79 | U35: 260 | V35: 1518.79 | W35: 130 | X35: 1648.79 | Y35: 160 | Z35: 1808.79 | AA35: 0 | AB35: 1808.79 | AC35: 260 | AD35: 2068.79 | AE35: 2068.79 | AF35: 2068.79
F36: 26142 · LANDSCAPE MAINTENANCE | G36: 0 | H36: 0 | I36: 0 | J36: 0 | K36: 0 | L36: 0 | M36: 188.14 | N36: 188.14 | O36: 0 | P36: 188.14 | Q36: 0 | R36: 188.14 | S36: 0 | T36: 188.14 | U36: 0 | V36: 188.14 | W36: 0 | X36: 188.14 | Y36: 500 | Z36: 688.14 | AA36: 0 | AB36: 688.14 | AC36: 0 | AD36: 688.14 | AE36: 688.14 | AF36: 688.14
F37: 26143 · PEST CONTROL | G37: 108.35 | H37: 108.35 | I37: 108.25 | J37: 216.6 | K37: 0 | L37: 216.6 | M37: 0 | N37: 216.6 | O37: 0 | P37: 216.6 | Q37: 0 | R37: 216.6 | S37: 0 | T37: 216.6 | U37: 0 | V37: 216.6 | W37: 0 | X37: 216.6 | Y37: 0 | Z37: 216.6 | AA37: 0 | AB37: 216.6 | AC37: 0 | AD37: 216.6 | AE37: 216.6 | AF37: 216.6
F38: 26145 · HOUSEKEEPING/LAUNDRY | G38: 0 | H38: 0 | I38: 0 | J38: 0 | K38: 0 | L38: 0 | M38: 0 | N38: 0 | O38: 0 | P38: 0 | Q38: 27.23 | R38: 27.23 | S38: 31.3 | T38: 58.53 | U38: 0 | V38: 58.53 | W38: 93 | X38: 151.53 | Y38: 0 | Z38: 151.53 | AA38: 0 | AB38: 151.53 | AC38: 0 | AD38: 151.53 | AE38: 151.53 | AF38: 151.53
F39: 26146 · MAINTENANCE | G39: 200 | H39: 200 | I39: 0 | J39: 200 | K39: 91.83 | L39: 291.83 | M39: 75.75 | N39: 367.58 | O39: 0 | P39: 367.58 | Q39: 506.79 | R39: 874.37 | S39: 453.83 | T39: 1328.2 | U39: 0 | V39: 1328.2 | W39: 175 | X39: 1503.2 | Y39: 26.9 | Z39: 1530.1 | AA39: 0 | AB39: 1530.1 | AC39: 0 | AD39: 1530.1 | AE39: 1530.1 | AF39: 1530.1
F40: 26147 · CONTRACT LABOR | G40: 2509.23 | H40: 2509.23 | I40: 3761.51 | J40: 6270.74 | K40: 2583.38 | L40: 8854.12 | M40: 5345.23 | N40: 14199.35 | O40: 3317.45 | P40: 17516.8 | Q40: 1130 | R40: 18646.8 | S40: 1585 | T40: 20231.8 | U40: 2462.25 | V40: 22694.05 | W40: 3680.13 | X40: 26374.18 | Y40: 5290.5 | Z40: 31664.68 | AA40: 2906.25 | AB40: 34570.93 | AC40: 2725 | AD40: 37295.93 | AE40: 37295.93 | AF40: 37295.93
E41: Total 26140 · CONTRACT SERVICES | G41: 3943.47 | H41: 3943.47 | I41: 3869.76 | J41: 7813.23 | K41: 2675.21 | L41: 10488.44 | M41: 5609.12 | N41: 16097.56 | O41: 4057.45 | P41: 20155.01 | Q41: 1664.02 | R41: 21819.03 | S41: 2070.13 | T41: 23889.16 | U41: 3822.25 | V41: 27711.41 | W41: 4308.13 | X41: 32019.54 | Y41: 5977.4 | Z41: 37996.94 | AA41: 2906.25 | AB41: 40903.19 | AC41: 2985 | AD41: 43888.19 | AE41: 43888.19 | AF41: 43888.19
E42: 26149 · DEBT SERVICE-ISLAND TIME CAPITA | G42: 14023 | H42: 14023 | I42: 12465 | J42: 26488 | K42: 15581 | L42: 42069 | M42: 14023 | N42: 56092 | O42: 15581 | P42: 71673 | Q42: 6232 | R42: 77905 | S42: 12465 | T42: 90370 | U42: 12465 | V42: 102835 | W42: 12465 | X42: 115300 | Y42: 12465 | Z42: 127765 | AA42: 12465 | AB42: 140230 | AC42: 24930 | AD42: 165160 | AE42: 165160 | AF42: 165160
D43: Total HAWKINS | G43: 17966.47 | H43: 17966.47 | I43: 16334.76 | J43: 34301.23 | K43: 18256.21 | L43: 52557.44 | M43: 19632.12 | N43: 72189.56 | O43: 19638.45 | P43: 91828.01 | Q43: 7896.02 | R43: 99724.03 | S43: 14535.13 | T43: 114259.16 | U43: 16287.25 | V43: 130546.41 | W43: 16773.13 | X43: 147319.54 | Y43: 18442.4 | Z43: 165761.94 | AA43: 15371.25 | AB43: 181133.19 | AC43: 27915 | AD43: 209048.19 | AE43: 209048.19 | AF43: 209048.19
D44: 15580 · LIVINGSTON
E45: 16600 · PAYROLL EXPENSES
F46: 16625 · SALARIES & WAGES | G46: 0 | H46: 0 | I46: 0 | J46: 0 | K46: 0 | L46: 0 | M46: 0 | N46: 0 | O46: 0 | P46: 0 | Q46: 0 | R46: 0 | S46: 0 | T46: 0 | U46: 0 | V46: 0 | W46: 0 | X46: 0 | Y46: 0 | Z46: 0 | AA46: 0 | AB46: 0 | AC46: 0 | AD46: 0 | AE46: 0 | AF46: 0
E47: Total 16600 · PAYROLL EXPENSES | G47: 0 | H47: 0 | I47: 0 | J47: 0 | K47: 0 | L47: 0 | M47: 0 | N47: 0 | O47: 0 | P47: 0 | Q47: 0 | R47: 0 | S47: 0 | T47: 0 | U47: 0 | V47: 0 | W47: 0 | X47: 0 | Y47: 0 | Z47: 0 | AA47: 0 | AB47: 0 | AC47: 0 | AD47: 0 | AE47: 0 | AF47: 0
D48: Total 15580 · LIVINGSTON | G48: 0 | H48: 0 | I48: 0 | J48: 0 | K48: 0 | L48: 0 | M48: 0 | N48: 0 | O48: 0 | P48: 0 | Q48: 0 | R48: 0 | S48: 0 | T48: 0 | U48: 0 | V48: 0 | W48: 0 | X48: 0 | Y48: 0 | Z48: 0 | AA48: 0 | AB48: 0 | AC48: 0 | AD48: 0 | AE48: 0 | AF48: 0
D49: 25590 · AUTO
E50: 25595 · FUEL | G50: 0 | H50: 0 | I50: 30 | J50: 30 | K50: 40 | L50: 70 | M50: 0 | N50: 70 | O50: 113.75 | P50: 183.75 | Q50: 148.38 | R50: 332.13 | S50: 158.54 | T50: 490.67 | U50: 168.32 | V50: 658.99 | W50: 100 | X50: 758.99 | Y50: 51.1 | Z50: 810.09 | AA50: 0 | AB50: 810.09 | AC50: 146.86 | AD50: 956.95 | AE50: 956.95 | AF50: 956.95
E51: 25600 · MAINTENANCE | G51: 0 | H51: 0 | I51: 0 | J51: 0 | K51: 0 | L51: 0 | M51: 0 | N51: 0 | O51: 0 | P51: 0 | Q51: 0 | R51: 0 | S51: 0 | T51: 0 | U51: 0 | V51: 0 | W51: 0 | X51: 0 | Y51: 0 | Z51: 0 | AA51: 0 | AB51: 0 | AC51: 145.12 | AD51: 145.12 | AE51: 145.12 | AF51: 145.12
E52: 25660 · VEHICLE UPKEEP | G52: 0 | H52: 0 | I52: 84.36 | J52: 84.36 | K52: 0 | L52: 84.36 | M52: 0 | N52: 84.36 | O52: 0 | P52: 84.36 | Q52: 0 | R52: 84.36 | S52: 0 | T52: 84.36 | U52: 0 | V52: 84.36 | W52: 0 | X52: 84.36 | Y52: 0 | Z52: 84.36 | AA52: 0 | AB52: 84.36 | AC52: 0 | AD52: 84.36 | AE52: 84.36 | AF52: 84.36
D53: Total 25590 · AUTO | G53: 0 | H53: 0 | I53: 114.36 | J53: 114.36 | K53: 40 | L53: 154.36 | M53: 0 | N53: 154.36 | O53: 113.75 | P53: 268.11 | Q53: 148.38 | R53: 416.49 | S53: 158.54 | T53: 575.03 | U53: 168.32 | V53: 743.35 | W53: 100 | X53: 843.35 | Y53: 51.1 | Z53: 894.45 | AA53: 0 | AB53: 894.45 | AC53: 291.98 | AD53: 1186.43 | AE53: 1186.43 | AF53: 1186.43
D54: 26180 · INSURANCE
E55: 26181 · PROPERTY INSURANCE | G55: 0 | H55: 0 | I55: 0 | J55: 0 | K55: 0 | L55: 0 | M55: 3679.46 | N55: 3679.46 | O55: 3693.46 | P55: 7372.92 | Q55: 0 | R55: 7372.92 | S55: 1856.73 | T55: 9229.65 | U55: 1836.73 | V55: 11066.38 | W55: 1836.73 | X55: 12903.11 | Y55: 1836.73 | Z55: 14739.84 | AA55: 1836.73 | AB55: 16576.57 | AC55: 0 | AD55: 16576.57 | AE55: 16576.57 | AF55: 16576.57
E56: 26182 · GENERAL LIABILITY INSURANCE | G56: 5073.54 | H56: 5073.54 | I56: 0 | J56: 5073.54 | K56: 0 | L56: 5073.54 | M56: 0 | N56: 5073.54 | O56: 0 | P56: 5073.54 | Q56: 0 | R56: 5073.54 | S56: 0 | T56: 5073.54 | U56: 0 | V56: 5073.54 | W56: 0 | X56: 5073.54 | Y56: 0 | Z56: 5073.54 | AA56: 0 | AB56: 5073.54 | AC56: 0 | AD56: 5073.54 | AE56: 5073.54 | AF56: 5073.54
D57: Total 26180 · INSURANCE | G57: 5073.54 | H57: 5073.54 | I57: 0 | J57: 5073.54 | K57: 0 | L57: 5073.54 | M57: 3679.46 | N57: 8753 | O57: 3693.46 | P57: 12446.46 | Q57: 0 | R57: 12446.46 | S57: 1856.73 | T57: 14303.19 | U57: 1836.73 | V57: 16139.92 | W57: 1836.73 | X57: 17976.65 | Y57: 1836.73 | Z57: 19813.38 | AA57: 1836.73 | AB57: 21650.11 | AC57: 0 | AD57: 21650.11 | AE57: 21650.11 | AF57: 21650.11
D58: 26270 · PROFESSIONAL FEES
E59: 26280 · LEGAL FEES | G59: 0 | H59: 0 | I59: 0 | J59: 0 | K59: 0 | L59: 0 | M59: 0 | N59: 0 | O59: 0 | P59: 0 | Q59: 0 | R59: 0 | S59: 1371 | T59: 1371 | U59: 0 | V59: 1371 | W59: 0 | X59: 1371 | Y59: 0 | Z59: 1371 | AA59: 0 | AB59: 1371 | AC59: 0 | AD59: 1371 | AE59: 1371 | AF59: 1371
E60: 26284 · COST REPORTS | G60: 558 | H60: 558 | I60: 558 | J60: 1116 | K60: 558 | L60: 1674 | M60: 0 | N60: 1674 | O60: 0 | P60: 1674 | Q60: 398 | R60: 2072 | S60: 398 | T60: 2470 | U60: 398 | V60: 2868 | W60: 398 | X60: 3266 | Y60: 398 | Z60: 3664 | AA60: 398 | AB60: 4062 | AC60: 398 | AD60: 4460 | AE60: 4460 | AF60: 4460
E61: 26288 · TAX RETURN PREPARATION | G61: 0 | H61: 0 | I61: 0 | J61: 0 | K61: 0 | L61: 0 | M61: 0 | N61: 0 | O61: 3350 | P61: 3350 | Q61: 0 | R61: 3350 | S61: 0 | T61: 3350 | U61: 0 | V61: 3350 | W61: 0 | X61: 3350 | Y61: 0 | Z61: 3350 | AA61: 0 | AB61: 3350 | AC61: 0 | AD61: 3350 | AE61: 3350 | AF61: 3350
E62: 26289 · ACCOUNTING | G62: 1350 | H62: 1350 | I62: 1350 | J62: 2700 | K62: 1350 | L62: 4050 | M62: 1350 | N62: 5400 | O62: 1350 | P62: 6750 | Q62: 1350 | R62: 8100 | S62: 1350 | T62: 9450 | U62: 1350 | V62: 10800 | W62: 1350 | X62: 12150 | Y62: 1350 | Z62: 13500 | AA62: 1350 | AB62: 14850 | AC62: 1350 | AD62: 16200 | AE62: 16200 | AF62: 16200
D63: Total 26270 · PROFESSIONAL FEES | G63: 1908 | H63: 1908 | I63: 1908 | J63: 3816 | K63: 1908 | L63: 5724 | M63: 1350 | N63: 7074 | O63: 4700 | P63: 11774 | Q63: 1748 | R63: 13522 | S63: 3119 | T63: 16641 | U63: 1748 | V63: 18389 | W63: 1748 | X63: 20137 | Y63: 1748 | Z63: 21885 | AA63: 1748 | AB63: 23633 | AC63: 1748 | AD63: 25381 | AE63: 25381 | AF63: 25381
D64: 26300 · REPAIRS & MAINTENANCE
E65: 26310 · HVAC | G65: 100 | H65: 100 | I65: 0 | J65: 100 | K65: 100 | L65: 200 | M65: 0 | N65: 200 | O65: 690 | P65: 890 | Q65: 0 | R65: 890 | S65: 0 | T65: 890 | U65: 0 | V65: 890 | W65: 0 | X65: 890 | Y65: 0 | Z65: 890 | AA65: 0 | AB65: 890 | AC65: 0 | AD65: 890 | AE65: 890 | AF65: 890
E66: 26320 · ELECTRICAL | G66: 0 | H66: 0 | I66: 0 | J66: 0 | K66: 109.65 | L66: 109.65 | M66: 0 | N66: 109.65 | O66: 0 | P66: 109.65 | Q66: 0 | R66: 109.65 | S66: 0 | T66: 109.65 | U66: 0 | V66: 109.65 | W66: 300 | X66: 409.65 | Y66: 0 | Z66: 409.65 | AA66: 0 | AB66: 409.65 | AC66: 0 | AD66: 409.65 | AE66: 409.65 | AF66: 409.65
E67: 26340 · INTERIOR MAINTENANCE | G67: 0 | H67: 0 | I67: 0 | J67: 0 | K67: 65.48 | L67: 65.48 | M67: 156.88 | N67: 222.36 | O67: 261.69 | P67: 484.05 | Q67: 73.75 | R67: 557.8 | S67: 234.02 | T67: 791.82 | U67: 459.67 | V67: 1251.49 | W67: 0 | X67: 1251.49 | Y67: 95.78 | Z67: 1347.27 | AA67: 33.83 | AB67: 1381.1 | AC67: 11.44 | AD67: 1392.54 | AE67: 1392.54 | AF67: 1392.54
E68: 26350 · BUILDING MAINTENANCE | G68: 100 | H68: 100 | I68: 16.82 | J68: 116.82 | K68: 280.28 | L68: 397.1 | M68: 623.02 | N68: 1020.12 | O68: 0 | P68: 1020.12 | Q68: 0 | R68: 1020.12 | S68: 0 | T68: 1020.12 | U68: 0 | V68: 1020.12 | W68: 997.58 | X68: 2017.7 | Y68: 223.37 | Z68: 2241.07 | AA68: 0 | AB68: 2241.07 | AC68: 248.44 | AD68: 2489.51 | AE68: 2489.51 | AF68: 2489.51
E69: 26750 · MISCELLANEOUS | G69: 200 | H69: 200 | I69: 0 | J69: 200 | K69: -6.48 | L69: 193.52 | M69: 0 | N69: 193.52 | O69: 0 | P69: 193.52 | Q69: 0 | R69: 193.52 | S69: 0 | T69: 193.52 | U69: 0 | V69: 193.52 | W69: 0 | X69: 193.52 | Y69: 0 | Z69: 193.52 | AA69: 0 | AB69: 193.52 | AC69: 0 | AD69: 193.52 | AE69: 193.52 | AF69: 193.52
D70: Total 26300 · REPAIRS & MAINTENANCE | G70: 400 | H70: 400 | I70: 16.82 | J70: 416.82 | K70: 548.93 | L70: 965.75 | M70: 779.9 | N70: 1745.65 | O70: 951.69 | P70: 2697.34 | Q70: 73.75 | R70: 2771.09 | S70: 234.02 | T70: 3005.11 | U70: 459.67 | V70: 3464.78 | W70: 1297.58 | X70: 4762.36 | Y70: 319.15 | Z70: 5081.51 | AA70: 33.83 | AB70: 5115.34 | AC70: 259.88 | AD70: 5375.22 | AE70: 5375.22 | AF70: 5375.22
D71: 26400 · SUPPLIES
E72: 26406 · KEYS/LOCKS | G72: 200 | H72: 200 | I72: 0 | J72: 200 | K72: 0 | L72: 200 | M72: 0 | N72: 200 | O72: 0 | P72: 200 | Q72: 0 | R72: 200 | S72: 0 | T72: 200 | U72: 0 | V72: 200 | W72: 0 | X72: 200 | Y72: 0 | Z72: 200 | AA72: 0 | AB72: 200 | AC72: 0 | AD72: 200 | AE72: 200 | AF72: 200
E73: 26407 · OTHER | G73: 0 | H73: 0 | I73: 203.56 | J73: 203.56 | K73: 0 | L73: 203.56 | M73: 0 | N73: 203.56 | O73: 0 | P73: 203.56 | Q73: 0 | R73: 203.56 | S73: 0 | T73: 203.56 | U73: 0 | V73: 203.56 | W73: 0 | X73: 203.56 | Y73: 0 | Z73: 203.56 | AA73: 0 | AB73: 203.56 | AC73: 0 | AD73: 203.56 | AE73: 203.56 | AF73: 203.56
D74: Total 26400 · SUPPLIES | G74: 200 | H74: 200 | I74: 203.56 | J74: 403.56 | K74: 0 | L74: 403.56 | M74: 0 | N74: 403.56 | O74: 0 | P74: 403.56 | Q74: 0 | R74: 403.56 | S74: 0 | T74: 403.56 | U74: 0 | V74: 403.56 | W74: 0 | X74: 403.56 | Y74: 0 | Z74: 403.56 | AA74: 0 | AB74: 403.56 | AC74: 0 | AD74: 403.56 | AE74: 403.56 | AF74: 403.56
D75: 26550 · OFFICE COST
E76: 26551 · OFFICE SUPPLIES | G76: 150 | H76: 150 | I76: 53.45 | J76: 203.45 | K76: 109.79 | L76: 313.24 | M76: 0 | N76: 313.24 | O76: 0 | P76: 313.24 | Q76: 0 | R76: 313.24 | S76: 76.98 | T76: 390.22 | U76: 0 | V76: 390.22 | W76: 0 | X76: 390.22 | Y76: 0 | Z76: 390.22 | AA76: 0 | AB76: 390.22 | AC76: 0 | AD76: 390.22 | AE76: 390.22 | AF76: 390.22
E77: 26553 · COPIER USAGE | G77: 0 | H77: 0 | I77: 161.78 | J77: 161.78 | K77: 0 | L77: 161.78 | M77: 335.82 | N77: 497.6 | O77: 0 | P77: 497.6 | Q77: 0 | R77: 497.6 | S77: 201.11 | T77: 698.71 | U77: 0 | V77: 698.71 | W77: 205.05 | X77: 903.76 | Y77: 0 | Z77: 903.76 | AA77: 0 | AB77: 903.76 | AC77: 0 | AD77: 903.76 | AE77: 903.76 | AF77: 903.76
E78: 26554 · COMPUTERS | G78: 0 | H78: 0 | I78: 1046.11 | J78: 1046.11 | K78: 0 | L78: 1046.11 | M78: 584.2 | N78: 1630.31 | O78: 428.55 | P78: 2058.86 | Q78: 432.43 | R78: 2491.29 | S78: 432.43 | T78: 2923.72 | U78: 481.75 | V78: 3405.47 | W78: 281.16 | X78: 3686.63 | Y78: 0 | Z78: 3686.63 | AA78: 585.22 | AB78: 4271.85 | AC78: 607.61 | AD78: 4879.46 | AE78: 4879.46 | AF78: 4879.46
E79: 26555 · TELEPHONE | G79: 4507 | H79: 4507 | I79: 1279.6 | J79: 5786.6 | K79: 1348.84 | L79: 7135.44 | M79: 3187 | N79: 10322.44 | O79: 3717.5 | P79: 14039.94 | Q79: 1412.93 | R79: 15452.87 | S79: 1340.26 | T79: 16793.13 | U79: 1333.94 | V79: 18127.07 | W79: 2811.14 | X79: 20938.21 | Y79: 0 | Z79: 20938.21 | AA79: 1001.17 | AB79: 21939.38 | AC79: 1063.13 | AD79: 23002.51 | AE79: 23002.51 | AF79: 23002.51
E80: 26557 · MEALS AND ENTERTAINMENT | G80: 0 | H80: 0 | I80: 0 | J80: 0 | K80: 0 | L80: 0 | M80: 105.8 | N80: 105.8 | O80: 0 | P80: 105.8 | Q80: 0 | R80: 105.8 | S80: 0 | T80: 105.8 | U80: 0 | V80: 105.8 | W80: 0 | X80: 105.8 | Y80: 0 | Z80: 105.8 | AA80: 0 | AB80: 105.8 | AC80: 0 | AD80: 105.8 | AE80: 105.8 | AF80: 105.8
E81: 26558 · BANK CHARGES | G81: 203 | H81: 203 | I81: 245 | J81: 448 | K81: 132.48 | L81: 580.48 | M81: 182.97 | N81: 763.45 | O81: 46.4 | P81: 809.85 | Q81: 44.58 | R81: 854.43 | S81: 85 | T81: 939.43 | U81: 48.19 | V81: 987.62 | W81: 45.91 | X81: 1033.53 | Y81: 311.5 | Z81: 1345.03 | AA81: 177.77 | AB81: 1522.8 | AC81: 391.18 | AD81: 1913.98 | AE81: 1913.98 | AF81: 1913.98
E82: 26561 · LICENSING | G82: 0 | H82: 0 | I82: 0 | J82: 0 | K82: 0 | L82: 0 | M82: 2393.95 | N82: 2393.95 | O82: 0 | P82: 2393.95 | Q82: 0 | R82: 2393.95 | S82: 9 | T82: 2402.95 | U82: 0 | V82: 2402.95 | W82: 0 | X82: 2402.95 | Y82: 0 | Z82: 2402.95 | AA82: 0 | AB82: 2402.95 | AC82: 0 | AD82: 2402.95 | AE82: 2402.95 | AF82: 2402.95
E83: 26562 · INTERNET CONNECTIONS | G83: 443.1 | H83: 443.1 | I83: 1335.59 | J83: 1778.69 | K83: 0 | L83: 1778.69 | M83: 1051.72 | N83: 2830.41 | O83: 0 | P83: 2830.41 | Q83: 354.78 | R83: 3185.19 | S83: 1908.82 | T83: 5094.01 | U83: 0 | V83: 5094.01 | W83: 167.62 | X83: 5261.63 | Y83: 522.86 | Z83: 5784.49 | AA83: 157.52 | AB83: 5942.01 | AC83: 1406.56 | AD83: 7348.57 | AE83: 7348.57 | AF83: 7348.57
E84: 26567 · POSTAGE EXPENSE | G84: 0 | H84: 0 | I84: 0 | J84: 0 | K84: 0 | L84: 0 | M84: 0 | N84: 0 | O84: 313 | P84: 313 | Q84: 0 | R84: 313 | S84: 142.94 | T84: 455.94 | U84: 18.14 | V84: 474.08 | W84: 40.14 | X84: 514.22 | Y84: 49.14 | Z84: 563.36 | AA84: 18.14 | AB84: 581.5 | AC84: 59.89 | AD84: 641.39 | AE84: 641.39 | AF84: 641.39
E85: 26568 · TRANSPORTATION EXPENSE | G85: 0 | H85: 0 | I85: 0 | J85: 0 | K85: 0 | L85: 0 | M85: 0 | N85: 0 | O85: 0 | P85: 0 | Q85: 0 | R85: 0 | S85: 0 | T85: 0 | U85: 0 | V85: 0 | W85: 41.88 | X85: 41.88 | Y85: 0 | Z85: 41.88 | AA85: 0 | AB85: 41.88 | AC85: 49.77 | AD85: 91.65 | AE85: 91.65 | AF85: 91.65
E86: 26571 · COPIER LEASE | G86: 0 | H86: 0 | I86: 0 | J86: 0 | K86: 0 | L86: 0 | M86: 0 | N86: 0 | O86: 900 | P86: 900 | Q86: 891.09 | R86: 1791.09 | S86: 0 | T86: 1791.09 | U86: 0 | V86: 1791.09 | W86: 0 | X86: 1791.09 | Y86: 0 | Z86: 1791.09 | AA86: 0 | AB86: 1791.09 | AC86: 0 | AD86: 1791.09 | AE86: 1791.09 | AF86: 1791.09
E87: 26574 · PRINTER SUPPLIES | G87: 300 | H87: 300 | I87: 0 | J87: 300 | K87: 0 | L87: 300 | M87: 64.01 | N87: 364.01 | O87: 0 | P87: 364.01 | Q87: 76.95 | R87: 440.96 | S87: 33.78 | T87: 474.74 | U87: 229.61 | V87: 704.35 | W87: 194.38 | X87: 898.73 | Y87: 37.37 | Z87: 936.1 | AA87: 0 | AB87: 936.1 | AC87: 109.45 | AD87: 1045.55 | AE87: 1045.55 | AF87: 1045.55
E88: 26575 · PAPER SUPPLIES | G88: 0 | H88: 0 | I88: 0 | J88: 0 | K88: 238.15 | L88: 238.15 | M88: 0 | N88: 238.15 | O88: 134.06 | P88: 372.21 | Q88: 0 | R88: 372.21 | S88: 0 | T88: 372.21 | U88: 0 | V88: 372.21 | W88: 0 | X88: 372.21 | Y88: 0 | Z88: 372.21 | AA88: 0 | AB88: 372.21 | AC88: 0 | AD88: 372.21 | AE88: 372.21 | AF88: 372.21
E89: 26577 · PRE EMPLOYMENT SCREENING | G89: 0 | H89: 0 | I89: 0 | J89: 0 | K89: 30.93 | L89: 30.93 | M89: 0 | N89: 30.93 | O89: 83.88 | P89: 114.81 | Q89: 128.57 | R89: 243.38 | S89: 1800 | T89: 2043.38 | U89: 0 | V89: 2043.38 | W89: 0 | X89: 2043.38 | Y89: 0 | Z89: 2043.38 | AA89: 0 | AB89: 2043.38 | AC89: 0 | AD89: 2043.38 | AE89: 2043.38 | AF89: 2043.38
E90: 26578 · PROFESSIONAL DEVELOPMENT | G90: 0 | H90: 0 | I90: 150 | J90: 150 | K90: 0 | L90: 150 | M90: 0 | N90: 150 | O90: 1207.81 | P90: 1357.81 | Q90: 723.63 | R90: 2081.44 | S90: 0 | T90: 2081.44 | U90: 0 | V90: 2081.44 | W90: 0 | X90: 2081.44 | Y90: 0 | Z90: 2081.44 | AA90: 0 | AB90: 2081.44 | AC90: 0 | AD90: 2081.44 | AE90: 2081.44 | AF90: 2081.44
D91: Total 26550 · OFFICE COST | G91: 5603.1 | H91: 5603.1 | I91: 4271.53 | J91: 9874.63 | K91: 1860.19 | L91: 11734.82 | M91: 7905.47 | N91: 19640.29 | O91: 6831.2 | P91: 26471.49 | Q91: 4064.96 | R91: 30536.45 | S91: 6030.32 | T91: 36566.77 | U91: 2111.63 | V91: 38678.4 | W91: 3787.28 | X91: 42465.68 | Y91: 920.87 | Z91: 43386.55 | AA91: 1939.82 | AB91: 45326.37 | AC91: 3687.59 | AD91: 49013.96 | AE91: 49013.96 | AF91: 49013.96
D92: 26564 · ACTIVITY FUND
E93: 26950 · ACTIVITY - OTHER | G93: 0 | H93: 0 | I93: 57.26 | J93: 57.26 | K93: 0 | L93: 57.26 | M93: 0 | N93: 57.26 | O93: 0 | P93: 57.26 | Q93: 0 | R93: 57.26 | S93: 0 | T93: 57.26 | U93: 0 | V93: 57.26 | W93: 0 | X93: 57.26 | Y93: 0 | Z93: 57.26 | AA93: 0 | AB93: 57.26 | AC93: 0 | AD93: 57.26 | AE93: 57.26 | AF93: 57.26
D94: Total 26564 · ACTIVITY FUND | G94: 0 | H94: 0 | I94: 57.26 | J94: 57.26 | K94: 0 | L94: 57.26 | M94: 0 | N94: 57.26 | O94: 0 | P94: 57.26 | Q94: 0 | R94: 57.26 | S94: 0 | T94: 57.26 | U94: 0 | V94: 57.26 | W94: 0 | X94: 57.26 | Y94: 0 | Z94: 57.26 | AA94: 0 | AB94: 57.26 | AC94: 0 | AD94: 57.26 | AE94: 57.26 | AF94: 57.26
D95: 26600 · PAYROLL EXPENSES
E96: 26601 · MC EXPENSE | G96: 302.59 | H96: 302.59 | I96: 302.81 | J96: 605.4 | K96: 276.34 | L96: 881.74 | M96: 326.51 | N96: 1208.25 | O96: 612.44 | P96: 1820.69 | Q96: 276.4 | R96: 2097.09 | S96: 306.73 | T96: 2403.82 | U96: 334.74 | V96: 2738.56 | W96: 312.17 | X96: 3050.73 | Y96: 508.89 | Z96: 3559.62 | AA96: 315.3 | AB96: 3874.92 | AC96: 294.6 | AD96: 4169.52 | AE96: 4169.52 | AF96: 4169.52
E97: 26602 · SS EXPENSE | G97: 1293.87 | H97: 1293.87 | I97: 1294.7 | J97: 2588.57 | K97: 1181.62 | L97: 3770.19 | M97: 1396.13 | N97: 5166.32 | O97: 2618.72 | P97: 7785.04 | Q97: 1181.85 | R97: 8966.89 | S97: 1311.45 | T97: 10278.34 | U97: 1431.36 | V97: 11709.7 | W97: 1334.63 | X97: 13044.33 | Y97: 1964.71 | Z97: 15009.04 | AA97: 1348.25 | AB97: 16357.29 | AC97: 1259.72 | AD97: 17617.01 | AE97: 17617.01 | AF97: 17617.01
E98: 26603 · TWC EXPENSE | G98: 440.32 | H98: 440.32 | I98: 440.62 | J98: 880.94 | K98: 402.14 | L98: 1283.08 | M98: 455.41 | N98: 1738.49 | O98: 731.97 | P98: 2470.46 | Q98: 244.14 | R98: 2714.6 | S98: 262.1 | T98: 2976.7 | U98: 283.44 | V98: 3260.14 | W98: 280.45 | X98: 3540.59 | Y98: 237.1 | Z98: 3777.69 | AA98: 85.92 | AB98: 3863.61 | AC98: 70.49 | AD98: 3934.1 | AE98: 3934.1 | AF98: 3934.1
E99: 26604 · FUTA EXPENSE | G99: 125.2 | H99: 125.2 | I99: 125.28 | J99: 250.48 | K99: 113.53 | L99: 364.01 | M99: 98.9 | N99: 462.91 | O99: 177.43 | P99: 640.34 | Q99: 54 | R99: 694.34 | S99: 68.02 | T99: 762.36 | U99: 77.47 | V99: 839.83 | W99: 53.57 | X99: 893.4 | Y99: 33.48 | Z99: 926.88 | AA99: 17.82 | AB99: 944.7 | AC99: 20.06 | AD99: 964.76 | AE99: 964.76 | AF99: 964.76
E100: 26625 · SALARIES & WAGES | G100: 20868.44 | H100: 20868.44 | I100: 20882.61 | J100: 41751.05 | K100: 19058.21 | L100: 60809.26 | M100: 22518.26 | N100: 83327.52 | O100: 42237.49 | P100: 125565.01 | Q100: 19062.28 | R100: 144627.29 | S100: 21152.18 | T100: 165779.47 | U100: 23086.37 | V100: 188865.84 | W100: 21526.49 | X100: 210392.33 | Y100: 31689.24 | Z100: 242081.57 | AA100: 21745.7 | AB100: 263827.27 | AC100: 20318.14 | AD100: 284145.41 | AE100: 284145.41 | AF100: 284145.41
E101: 26626 · EXPENSE REIMBURSEMENT | G101: 0 | H101: 0 | I101: 0 | J101: 0 | K101: 0 | L101: 0 | M101: 0 | N101: 0 | O101: 0 | P101: 0 | Q101: 0 | R101: 0 | S101: 18.28 | T101: 18.28 | U101: 0 | V101: 18.28 | W101: 0 | X101: 18.28 | Y101: 0 | Z101: 18.28 | AA101: 0 | AB101: 18.28 | AC101: 0 | AD101: 18.28 | AE101: 18.28 | AF101: 18.28
E102: 26627 · WAGE GARNISHMENTS - HAWKINS | G102: 0 | H102: 0 | I102: 0 | J102: 0 | K102: 0 | L102: 0 | M102: 627.44 | N102: 627.44 | O102: 0 | P102: 627.44 | Q102: 0 | R102: 627.44 | S102: 0 | T102: 627.44 | U102: 0 | V102: 627.44 | W102: 0 | X102: 627.44 | Y102: 0 | Z102: 627.44 | AA102: 0 | AB102: 627.44 | AC102: 0 | AD102: 627.44 | AE102: 627.44 | AF102: 627.44
E103: 266271 · DOL AUDIT WAGES | G103: 0 | H103: 0 | I103: 0 | J103: 0 | K103: 0 | L103: 0 | M103: 0 | N103: 0 | O103: 6000 | P103: 6000 | Q103: 5076.29 | R103: 11076.29 | S103: 0 | T103: 11076.29 | U103: 0 | V103: 11076.29 | W103: 0 | X103: 11076.29 | Y103: 0 | Z103: 11076.29 | AA103: 0 | AB103: 11076.29 | AC103: 0 | AD103: 11076.29 | AE103: 11076.29 | AF103: 11076.29
D104: Total 26600 · PAYROLL EXPENSES | G104: 23030.42 | H104: 23030.42 | I104: 23046.02 | J104: 46076.44 | K104: 21031.84 | L104: 67108.28 | M104: 25422.65 | N104: 92530.93 | O104: 52378.05 | P104: 144908.98 | Q104: 25894.96 | R104: 170803.94 | S104: 23118.76 | T104: 193922.7 | U104: 25213.38 | V104: 219136.08 | W104: 23507.31 | X104: 242643.39 | Y104: 34433.42 | Z104: 277076.81 | AA104: 23512.99 | AB104: 300589.8 | AC104: 21963.01 | AD104: 322552.81 | AE104: 322552.81 | AF104: 322552.81
D105: 26820 · TAXES
E106: 26850 · PROPERTY | G106: 0 | H106: 0 | I106: 0 | J106: 0 | K106: 0 | L106: 0 | M106: 0 | N106: 0 | O106: 81994.84 | P106: 81994.84 | Q106: 4623.24 | R106: 86618.08 | S106: 1578.63 | T106: 88196.71 | U106: 0 | V106: 88196.71 | W106: 0 | X106: 88196.71 | Y106: 406.17 | Z106: 88602.88 | AA106: 0 | AB106: 88602.88 | AC106: 0 | AD106: 88602.88 | AE106: 88602.88 | AF106: 88602.88
E107: 26856 · PAYROLL TAXES & PENALTIES | G107: 4830 | H107: 4830 | I107: 1609 | J107: 6439 | K107: 0 | L107: 6439 | M107: 0 | N107: 6439 | O107: 0 | P107: 6439 | Q107: 0 | R107: 6439 | S107: 0 | T107: 6439 | U107: 0 | V107: 6439 | W107: 1609 | X107: 8048 | Y107: 1609 | Z107: 9657 | AA107: 0 | AB107: 9657 | AC107: 0 | AD107: 9657 | AE107: 9657 | AF107: 9657
D108: Total 26820 · TAXES | G108: 4830 | H108: 4830 | I108: 1609 | J108: 6439 | K108: 0 | L108: 6439 | M108: 0 | N108: 6439 | O108: 81994.84 | P108: 88433.84 | Q108: 4623.24 | R108: 93057.08 | S108: 1578.63 | T108: 94635.71 | U108: 0 | V108: 94635.71 | W108: 1609 | X108: 96244.71 | Y108: 2015.17 | Z108: 98259.88 | AA108: 0 | AB108: 98259.88 | AC108: 0 | AD108: 98259.88 | AE108: 98259.88 | AF108: 98259.88
D109: 26870 · UTILITIES
E110: 26875 · ELECTRICITY | G110: 3463 | H110: 3463 | I110: 1000 | J110: 4463 | K110: 1593 | L110: 6056 | M110: 0 | N110: 6056 | O110: 1166.7 | P110: 7222.7 | Q110: 1763.35 | R110: 8986.05 | S110: 331.91 | T110: 9317.96 | U110: 2469.6 | V110: 11787.56 | W110: 4775.32 | X110: 16562.88 | Y110: 1946.47 | Z110: 18509.35 | AA110: 1320.93 | AB110: 19830.28 | AC110: 1146.99 | AD110: 20977.27 | AE110: 20977.27 | AF110: 20977.27
E111: 26880 · WATER | G111: 979.38 | H111: 979.38 | I111: 1046.43 | J111: 2025.81 | K111: 964.48 | L111: 2990.29 | M111: 1928.88 | N111: 4919.17 | O111: 0 | P111: 4919.17 | Q111: 1128.38 | R111: 6047.55 | S111: 986.83 | T111: 7034.38 | U111: 1283.71 | V111: 8318.09 | W111: 1031.53 | X111: 9349.62 | Y111: 1464.3 | Z111: 10813.92 | AA111: 968.53 | AB111: 11782.45 | AC111: 1169.93 | AD111: 12952.38 | AE111: 12952.38 | AF111: 12952.38
E112: 26885 · GAS | G112: 835.53 | H112: 835.53 | I112: 60.08 | J112: 895.61 | K112: 645.41 | L112: 1541.02 | M112: 640.31 | N112: 2181.33 | O112: 342.76 | P112: 2524.09 | Q112: 391.45 | R112: 2915.54 | S112: 379.68 | T112: 3295.22 | U112: 342.59 | V112: 3637.81 | W112: 345.07 | X112: 3982.88 | Y112: 379.06 | Z112: 4361.94 | AA112: 0 | AB112: 4361.94 | AC112: 740.21 | AD112: 5102.15 | AE112: 5102.15 | AF112: 5102.15
D113: Total 26870 · UTILITIES | G113: 5277.91 | H113: 5277.91 | I113: 2106.51 | J113: 7384.42 | K113: 3202.89 | L113: 10587.31 | M113: 2569.19 | N113: 13156.5 | O113: 1509.46 | P113: 14665.96 | Q113: 3283.18 | R113: 17949.14 | S113: 1698.42 | T113: 19647.56 | U113: 4095.9 | V113: 23743.46 | W113: 6151.92 | X113: 29895.38 | Y113: 3789.83 | Z113: 33685.21 | AA113: 2289.46 | AB113: 35974.67 | AC113: 3057.13 | AD113: 39031.8 | AE113: 39031.8 | AF113: 39031.8
D114: 4000 · Reconciliation Discrepancies | G114: 2053.03 | H114: 2053.03 | I114: 0 | J114: 2053.03 | K114: 0 | L114: 2053.03 | M114: 0 | N114: 2053.03 | O114: 0 | P114: 2053.03 | Q114: 0 | R114: 2053.03 | S114: 0 | T114: 2053.03 | U114: 0 | V114: 2053.03 | W114: 0 | X114: 2053.03 | Y114: 0 | Z114: 2053.03 | AA114: 0 | AB114: 2053.03 | AC114: 0 | AD114: 2053.03 | AE114: 2053.03 | AF114: 2053.03
C115: Total Expense | G115: 66342.47 | H115: 66342.47 | I115: 49667.82 | J115: 116010.29 | K115: 46848.06 | L115: 162858.35 | M115: 61338.79 | N115: 224197.14 | O115: 171810.9 | P115: 396008.04 | Q115: 47732.49 | R115: 443740.53 | S115: 52329.55 | T115: 496070.08 | U115: 51920.88 | V115: 547990.96 | W115: 56810.95 | X115: 604801.91 | Y115: 63556.67 | Z115: 668358.58 | AA115: 46732.08 | AB115: 715090.66 | AC115: 58922.59 | AD115: 774013.25 | AE115: 774013.25 | AF115: 774013.25
A116: Net Ordinary Income | G116: -16371.19 | H116: -16371.19 | I116: 2284.71 | J116: -14086.48 | K116: 239.86 | L116: -13846.62 | M116: 91720.31 | N116: 77873.69 | O116: -142949.27 | P116: -65075.58 | Q116: 1374.72 | R116: -63700.86 | S116: -1285.7 | T116: -64986.56 | U116: -6719.27 | V116: -71705.83 | W116: -9121.95 | X116: -80827.78 | Y116: -14410.8 | Z116: -95238.58 | AA116: -12266.23 | AB116: -107504.81 | AC116: -18282.98 | AD116: -125787.79 | AE116: -125787.79 | AF116: -125787.79
G117: -16371.19 | H117: -16371.19 | I117: 2284.71 | J117: -14086.48 | K117: 239.86 | L117: -13846.62 | M117: 91720.31 | N117: 77873.69 | O117: -142949.27 | P117: -65075.58 | Q117: 1374.72 | R117: -63700.86 | S117: -1285.7 | T117: -64986.56 | U117: -6719.27 | V117: -71705.83 | W117: -9121.95 | X117: -80827.78 | Y117: -14410.8 | Z117: -95238.58 | AA117: -12266.23 | AB117: -107504.81 | AC117: -18282.98 | AD117: -125787.79 | AE117: -125787.79 | AF117: -125787.79

Sheet 2021
AB1: TOTAL
H2: Jan 21 | I2: Jan 21 | J2: Feb 21 | K2: Jan - Feb 21 | L2: Mar 21 | M2: Jan - Mar 21 | N2: Apr 21 | O2: Jan - Apr 21 | P2: May 21 | Q2: Jan - May 21 | R2: Jun 21 | S2: Jan - Jun 21 | T2: Jul 21 | U2: Jan - Jul 21 | V2: Aug 21 | W2: Jan - Aug 21 | X2: Sep 21 | Y2: Jan - Sep 21 | Z2: Oct 21 | AA2: Jan - Oct 21 | AB2: Jan - Oct 21 | AC2: Jan - Oct 21
B3: Ordinary Income/Expense
D4: Income
E5: 24000 · REVENUES-HAWKINS
F6: 24005 · PRIVATE PAY | H6: 7850 | I6: 7850 | J6: 1900 | K6: 9750 | L6: 1900 | M6: 11650 | N6: 1900 | O6: 13550 | P6: 1900 | Q6: 15450 | R6: 1900 | S6: 17350 | T6: 1900 | U6: 19250 | V6: 1900 | W6: 21150 | X6: 1900 | Y6: 23050 | Z6: 1900 | AA6: 24950 | AB6: 24950 | AC6: 24950
F7: 24010 · UNITED HEALTHCARE | H7: 10128.3 | I7: 10128.3 | J7: 4745.75 | K7: 14874.05 | L7: 9787.87 | M7: 24661.92 | N7: 22340.78 | O7: 47002.7 | P7: 6827.01 | Q7: 53829.71 | R7: 11307.98 | S7: 65137.69 | T7: 21001.7 | U7: 86139.39 | V7: 12723.77 | W7: 98863.16 | X7: 18356.61 | Y7: 117219.77 | Z7: 6370.25 | AA7: 123590.02 | AB7: 123590.02 | AC7: 123590.02
F8: 24010A · CIGNA | H8: 19216.63 | I8: 19216.63 | J8: 27614.44 | K8: 46831.07 | L8: 10754.23 | M8: 57585.3 | N8: 4050.9 | O8: 61636.2 | P8: 13939.46 | Q8: 75575.66 | R8: 13736.34 | S8: 89312 | T8: 8074.25 | U8: 97386.25 | V8: 20463.32 | W8: 117849.57 | X8: 4314.44 | Y8: 122164.01 | Z8: 16170.69 | AA8: 138334.7 | AB8: 138334.7 | AC8: 138334.7
F9: 24010B · CCAD | H9: 0 | I9: 0 | J9: 2960.83 | K9: 2960.83 | L9: 0 | M9: 2960.83 | N9: 0 | O9: 2960.83 | P9: 2543.68 | Q9: 5504.51 | R9: -3000 | S9: 2504.51 | T9: 5741.19 | U9: 8245.7 | V9: 6239.7 | W9: 14485.4 | X9: 3567.29 | Y9: 18052.69 | Z9: 4811.88 | AA9: 22864.57 | AB9: 22864.57 | AC9: 22864.57
F10: 24011 · ROOM & BOARD | H10: 16429.51 | I10: 16429.51 | J10: 12793.2 | K10: 29222.71 | L10: 13201.17 | M10: 42423.88 | N10: 12531.17 | O10: 54955.05 | P10: 15921.58 | Q10: 70876.63 | R10: 18020.58 | S10: 88897.21 | T10: 13596.6 | U10: 102493.81 | V10: 19152.73 | W10: 121646.54 | X10: 17948.63 | Y10: 139595.17 | Z10: 17610.6 | AA10: 157205.77 | AB10: 157205.77 | AC10: 157205.77
F11: 24015 · (CO-PAY) | H11: 3239.08 | I11: 3239.08 | J11: 2102.02 | K11: 5341.1 | L11: 1958.06 | M11: 7299.16 | N11: 2031.1 | O11: 9330.26 | P11: 2031.1 | Q11: 11361.36 | R11: 1999.43 | S11: 13360.79 | T11: 2317.51 | U11: 15678.3 | V11: 3168.26 | W11: 18846.56 | X11: 2421.55 | Y11: 21268.11 | Z11: 1874.56 | AA11: 23142.67 | AB11: 23142.67 | AC11: 23142.67
F12: 24025 · CABLE INCOME- HAWKINS | H12: 0 | I12: 0 | J12: 1.67 | K12: 1.67 | L12: 0 | M12: 1.67 | N12: 0 | O12: 1.67 | P12: 0 | Q12: 1.67 | R12: 0 | S12: 1.67 | T12: 0 | U12: 1.67 | V12: 0 | W12: 1.67 | X12: 0 | Y12: 1.67 | Z12: 0 | AA12: 1.67 | AB12: 1.67 | AC12: 1.67
F13: 24030 · OTHER INCOME-HAWKINS | H13: 70.76 | I13: 70.76 | J13: 0 | K13: 70.76 | L13: 0 | M13: 70.76 | N13: 0 | O13: 70.76 | P13: 375 | Q13: 445.76 | R13: 0 | S13: 445.76 | T13: 112.68 | U13: 558.44 | V13: 307.32 | W13: 865.76 | X13: 696.5 | Y13: 1562.26 | Z13: 0 | AA13: 1562.26 | AB13: 1562.26 | AC13: 1562.26
F14: 24050 · NON REFUNDABLE DEPOSITS | H14: 0 | I14: 0 | J14: 0 | K14: 0 | L14: 0 | M14: 0 | N14: 0 | O14: 0 | P14: 0 | Q14: 0 | R14: 0 | S14: 0 | T14: 19.45 | U14: 19.45 | V14: 0 | W14: 19.45 | X14: 0 | Y14: 19.45 | Z14: 0 | AA14: 19.45 | AB14: 19.45 | AC14: 19.45
E15: Total 24000 · REVENUES-HAWKINS | H15: 56934.28 | I15: 56934.28 | J15: 52117.91 | K15: 109052.19 | L15: 37601.33 | M15: 146653.52 | N15: 42853.95 | O15: 189507.47 | P15: 43537.83 | Q15: 233045.3 | R15: 43964.33 | S15: 277009.63 | T15: 52763.38 | U15: 329773.01 | V15: 63955.1 | W15: 393728.11 | X15: 49205.02 | Y15: 442933.13 | Z15: 48737.98 | AA15: 491671.11 | AB15: 491671.11 | AC15: 491671.11
D16: Total Income | H16: 56934.28 | I16: 56934.28 | J16: 52117.91 | K16: 109052.19 | L16: 37601.33 | M16: 146653.52 | N16: 42853.95 | O16: 189507.47 | P16: 43537.83 | Q16: 233045.3 | R16: 43964.33 | S16: 277009.63 | T16: 52763.38 | U16: 329773.01 | V16: 63955.1 | W16: 393728.11 | X16: 49205.02 | Y16: 442933.13 | Z16: 48737.98 | AA16: 491671.11 | AB16: 491671.11 | AC16: 491671.11
D17: Cost of Goods Sold
E18: 25000 · COST OF GOODS SOLD-HAWKINS
F19: 25005 · COST OF FOOD | H19: 1432.88 | I19: 1432.88 | J19: 1632.97 | K19: 3065.85 | L19: 1359.27 | M19: 4425.12 | N19: 1974.55 | O19: 6399.67 | P19: 2046.94 | Q19: 8446.61 | R19: 2089.65 | S19: 10536.26 | T19: 2581.34 | U19: 13117.6 | V19: 2680.75 | W19: 15798.35 | X19: 1461.16 | Y19: 17259.51 | Z19: 0 | AA19: 17259.51 | AB19: 17259.51 | AC19: 17259.51
F20: 25010 · COST OF SUPPLIES
G21: 25011 · HOUSEKEEPING | H21: 233.33 | I21: 233.33 | J21: 178.8 | K21: 412.13 | L21: 18.38 | M21: 430.51 | N21: 18.4 | O21: 448.91 | P21: 388.43 | Q21: 837.34 | R21: 103 | S21: 940.34 | T21: 60.93 | U21: 1001.27 | V21: 105 | W21: 1106.27 | X21: 318.57 | Y21: 1424.84 | Z21: 0 | AA21: 1424.84 | AB21: 1424.84 | AC21: 1424.84
G22: 25012 · LAUNDRY SUPPLIES | H22: 308.33 | I22: 308.33 | J22: 67.23 | K22: 375.56 | L22: 17.32 | M22: 392.88 | N22: 68.85 | O22: 461.73 | P22: 248.21 | Q22: 709.94 | R22: 199 | S22: 908.94 | T22: 68.94 | U22: 977.88 | V22: 20 | W22: 997.88 | X22: 255 | Y22: 1252.88 | Z22: 0 | AA22: 1252.88 | AB22: 1252.88 | AC22: 1252.88
G23: 25013 · MEDICAL SUPPLIES | H23: 183.34 | I23: 183.34 | J23: 0 | K23: 183.34 | L23: 0 | M23: 183.34 | N23: 0 | O23: 183.34 | P23: 303.45 | Q23: 486.79 | R23: 405.25 | S23: 892.04 | T23: 0 | U23: 892.04 | V23: 275 | W23: 1167.04 | X23: 1048.15 | Y23: 2215.19 | Z23: 0 | AA23: 2215.19 | AB23: 2215.19 | AC23: 2215.19
G24: 25014 · DIETARY SUPPLIES | H24: 0 | I24: 0 | J24: 0 | K24: 0 | L24: 0 | M24: 0 | N24: 0 | O24: 0 | P24: 0 | Q24: 0 | R24: 0 | S24: 0 | T24: 40.95 | U24: 40.95 | V24: 0 | W24: 40.95 | X24: 52.86 | Y24: 93.81 | Z24: 0 | AA24: 93.81 | AB24: 93.81 | AC24: 93.81
F25: Total 25010 · COST OF SUPPLIES | H25: 725 | I25: 725 | J25: 246.03 | K25: 971.03 | L25: 35.7 | M25: 1006.73 | N25: 87.25 | O25: 1093.98 | P25: 940.09 | Q25: 2034.07 | R25: 707.25 | S25: 2741.32 | T25: 170.82 | U25: 2912.14 | V25: 400 | W25: 3312.14 | X25: 1674.58 | Y25: 4986.72 | Z25: 0 | AA25: 4986.72 | AB25: 4986.72 | AC25: 4986.72
E26: Total 25000 · COST OF GOODS SOLD-HAWKINS | H26: 2157.88 | I26: 2157.88 | J26: 1879 | K26: 4036.88 | L26: 1394.97 | M26: 5431.85 | N26: 2061.8 | O26: 7493.65 | P26: 2987.03 | Q26: 10480.68 | R26: 2796.9 | S26: 13277.58 | T26: 2752.16 | U26: 16029.74 | V26: 3080.75 | W26: 19110.49 | X26: 3135.74 | Y26: 22246.23 | Z26: 0 | AA26: 22246.23 | AB26: 22246.23 | AC26: 22246.23
D27: Total COGS | H27: 2157.88 | I27: 2157.88 | J27: 1879 | K27: 4036.88 | L27: 1394.97 | M27: 5431.85 | N27: 2061.8 | O27: 7493.65 | P27: 2987.03 | Q27: 10480.68 | R27: 2796.9 | S27: 13277.58 | T27: 2752.16 | U27: 16029.74 | V27: 3080.75 | W27: 19110.49 | X27: 3135.74 | Y27: 22246.23 | Z27: 0 | AA27: 22246.23 | AB27: 22246.23 | AC27: 22246.23
C28: Gross Profit | H28: 54776.4 | I28: 54776.4 | J28: 50238.91 | K28: 105015.31 | L28: 36206.36 | M28: 141221.67 | N28: 40792.15 | O28: 182013.82 | P28: 40550.8 | Q28: 222564.62 | R28: 41167.43 | S28: 263732.05 | T28: 50011.22 | U28: 313743.27 | V28: 60874.35 | W28: 374617.62 | X28: 46069.28 | Y28: 420686.9 | Z28: 48737.98 | AA28: 469424.88 | AB28: 469424.88 | AC28: 469424.88
D29: Expense
E30: HAWKINS
F31: 26140 · CONTRACT SERVICES
G32: 26116 · STATE INSPECTION SPRINKLERS | H32: 2405 | I32: 2405 | J32: 0 | K32: 2405 | L32: 0 | M32: 2405 | N32: 0 | O32: 2405 | P32: 0 | Q32: 2405 | R32: 0 | S32: 2405 | T32: 700 | U32: 3105 | V32: 0 | W32: 3105 | X32: 0 | Y32: 3105 | Z32: 0 | AA32: 3105 | AB32: 3105 | AC32: 3105
G33: 26119 · BIO HAZARD | H33: 0 | I33: 0 | J33: 0 | K33: 0 | L33: 0 | M33: 0 | N33: 0 | O33: 0 | P33: 0 | Q33: 0 | R33: 0 | S33: 0 | T33: 0 | U33: 0 | V33: 0 | W33: 0 | X33: 0 | Y33: 0 | Z33: 0 | AA33: 0 | AB33: 0 | AC33: 0
G34: 26125 · PLUMBING CONTRACT SVCS | H34: 0 | I34: 0 | J34: 0 | K34: 0 | L34: 750 | M34: 750 | N34: 0 | O34: 750 | P34: 0 | Q34: 750 | R34: 0 | S34: 750 | T34: 0 | U34: 750 | V34: 0 | W34: 750 | X34: 0 | Y34: 750 | Z34: 0 | AA34: 750 | AB34: 750 | AC34: 750
G35: 26126 · ELECTRICAL CONTRACT SVCS | H35: 691.82 | I35: 691.82 | J35: 0 | K35: 691.82 | L35: 0 | M35: 691.82 | N35: 0 | O35: 691.82 | P35: 0 | Q35: 691.82 | R35: 40 | S35: 731.82 | T35: 0 | U35: 731.82 | V35: 0 | W35: 731.82 | X35: 0 | Y35: 731.82 | Z35: 0 | AA35: 731.82 | AB35: 731.82 | AC35: 731.82
G36: 26127 · OTHER CONTRACTUAL SVCS | H36: 130 | I36: 130 | J36: 130 | K36: 260 | L36: 260 | M36: 520 | N36: 0 | O36: 520 | P36: 130 | Q36: 650 | R36: 0 | S36: 650 | T36: 260 | U36: 910 | V36: 0 | W36: 910 | X36: 0 | Y36: 910 | Z36: 390 | AA36: 1300 | AB36: 1300 | AC36: 1300
G37: 26141 · MONITORING | H37: 1532.28 | I37: 1532.28 | J37: 0 | K37: 1532.28 | L37: 1014.3 | M37: 2546.58 | N37: 0 | O37: 2546.58 | P37: 0 | Q37: 2546.58 | R37: 0 | S37: 2546.58 | T37: 0 | U37: 2546.58 | V37: 0 | W37: 2546.58 | X37: 800 | Y37: 3346.58 | Z37: 0 | AA37: 3346.58 | AB37: 3346.58 | AC37: 3346.58
G38: 26142 · LANDSCAPE MAINTENANCE | H38: 0 | I38: 0 | J38: 0 | K38: 0 | L38: 0 | M38: 0 | N38: 0 | O38: 0 | P38: 0 | Q38: 0 | R38: 0 | S38: 0 | T38: 1345.44 | U38: 1345.44 | V38: 0 | W38: 1345.44 | X38: 225 | Y38: 1570.44 | Z38: 0 | AA38: 1570.44 | AB38: 1570.44 | AC38: 1570.44
G39: 26144 · EQUIPMENT RENTAL | H39: 0 | I39: 0 | J39: 0 | K39: 0 | L39: 0 | M39: 0 | N39: 0 | O39: 0 | P39: 251.61 | Q39: 251.61 | R39: 0 | S39: 251.61 | T39: 0 | U39: 251.61 | V39: 0 | W39: 251.61 | X39: 0 | Y39: 251.61 | Z39: 0 | AA39: 251.61 | AB39: 251.61 | AC39: 251.61
G40: 26145 · HOUSEKEEPING/LAUNDRY | H40: 736.56 | I40: 736.56 | J40: 0 | K40: 736.56 | L40: 0 | M40: 736.56 | N40: 0 | O40: 736.56 | P40: 0 | Q40: 736.56 | R40: 0 | S40: 736.56 | T40: 0 | U40: 736.56 | V40: 0 | W40: 736.56 | X40: 0 | Y40: 736.56 | Z40: 0 | AA40: 736.56 | AB40: 736.56 | AC40: 736.56
G41: 26146 · MAINTENANCE | H41: 0 | I41: 0 | J41: 0 | K41: 0 | L41: 0 | M41: 0 | N41: 0 | O41: 0 | P41: 0 | Q41: 0 | R41: 0 | S41: 0 | T41: 0 | U41: 0 | V41: -70.35 | W41: -70.35 | X41: 300 | Y41: 229.65 | Z41: 0 | AA41: 229.65 | AB41: 229.65 | AC41: 229.65
G42: 26147 · CONTRACT LABOR | H42: 2509.38 | I42: 2509.38 | J42: 2960.63 | K42: 5470.01 | L42: 3008.13 | M42: 8478.14 | N42: 5066.76 | O42: 13544.9 | P42: 5887.38 | Q42: 19432.28 | R42: 5370.13 | S42: 24802.41 | T42: 3068.6 | U42: 27871.01 | V42: 4891 | W42: 32762.01 | X42: 3277.5 | Y42: 36039.51 | Z42: 5212.8 | AA42: 41252.31 | AB42: 41252.31 | AC42: 41252.31
F43: Total 26140 · CONTRACT SERVICES | H43: 8005.04 | I43: 8005.04 | J43: 3090.63 | K43: 11095.67 | L43: 5032.43 | M43: 16128.1 | N43: 5066.76 | O43: 21194.86 | P43: 6268.99 | Q43: 27463.85 | R43: 5410.13 | S43: 32873.98 | T43: 5374.04 | U43: 38248.02 | V43: 4820.65 | W43: 43068.67 | X43: 4602.5 | Y43: 47671.17 | Z43: 5602.8 | AA43: 53273.97 | AB43: 53273.97 | AC43: 53273.97
F44: 26149 · DEBT SERVICE-ISLAND TIME CAPITA | H44: 0 | I44: 0 | J44: 12465 | K44: 12465 | L44: 0 | M44: 12465 | N44: 15581 | O44: 28046 | P44: 12465 | Q44: 40511 | R44: 12500 | S44: 53011 | T44: 15582 | U44: 68593 | V44: 15582 | W44: 84175 | X44: 12500 | Y44: 96675 | Z44: 12500 | AA44: 109175 | AB44: 109175 | AC44: 109175
F45: HAWKINS - Other | H45: 0 | I45: 0 | J45: 0 | K45: 0 | L45: 0 | M45: 0 | N45: 0 | O45: 0 | P45: 0 | Q45: 0 | R45: 0 | S45: 0 | T45: 0 | U45: 0 | V45: 0 | W45: 0 | X45: 0 | Y45: 0 | Z45: 0 | AA45: 0 | AB45: 0 | AC45: 0
E46: Total HAWKINS | H46: 8005.04 | I46: 8005.04 | J46: 15555.63 | K46: 23560.67 | L46: 5032.43 | M46: 28593.1 | N46: 20647.76 | O46: 49240.86 | P46: 18733.99 | Q46: 67974.85 | R46: 17910.13 | S46: 85884.98 | T46: 20956.04 | U46: 106841.02 | V46: 20402.65 | W46: 127243.67 | X46: 17102.5 | Y46: 144346.17 | Z46: 18102.8 | AA46: 162448.97 | AB46: 162448.97 | AC46: 162448.97
E47: 15580 · LIVINGSTON
F48: 16600 · PAYROLL EXPENSES
G49: 16625 · SALARIES & WAGES | H49: 0 | I49: 0 | J49: 0 | K49: 0 | L49: 0 | M49: 0 | N49: 0 | O49: 0 | P49: 0 | Q49: 0 | R49: 0 | S49: 0 | T49: 0 | U49: 0 | V49: 0 | W49: 0 | X49: 0 | Y49: 0 | Z49: 0 | AA49: 0 | AB49: 0 | AC49: 0
F50: Total 16600 · PAYROLL EXPENSES | H50: 0 | I50: 0 | J50: 0 | K50: 0 | L50: 0 | M50: 0 | N50: 0 | O50: 0 | P50: 0 | Q50: 0 | R50: 0 | S50: 0 | T50: 0 | U50: 0 | V50: 0 | W50: 0 | X50: 0 | Y50: 0 | Z50: 0 | AA50: 0 | AB50: 0 | AC50: 0
E51: Total 15580 · LIVINGSTON | H51: 0 | I51: 0 | J51: 0 | K51: 0 | L51: 0 | M51: 0 | N51: 0 | O51: 0 | P51: 0 | Q51: 0 | R51: 0 | S51: 0 | T51: 0 | U51: 0 | V51: 0 | W51: 0 | X51: 0 | Y51: 0 | Z51: 0 | AA51: 0 | AB51: 0 | AC51: 0
E52: 25590 · AUTO
F53: 25595 · FUEL | H53: 0 | I53: 0 | J53: 0 | K53: 0 | L53: 200 | M53: 200 | N53: 25.52 | O53: 225.52 | P53: 110 | Q53: 335.52 | R53: 80 | S53: 415.52 | T53: 150 | U53: 565.52 | V53: 185 | W53: 750.52 | X53: 104.82 | Y53: 855.34 | Z53: 0 | AA53: 855.34 | AB53: 855.34 | AC53: 855.34
F54: 25600 · MAINTENANCE | H54: 0 | I54: 0 | J54: 0 | K54: 0 | L54: 0 | M54: 0 | N54: 0 | O54: 0 | P54: 0 | Q54: 0 | R54: 0 | S54: 0 | T54: 0 | U54: 0 | V54: 579.13 | W54: 579.13 | X54: 0 | Y54: 579.13 | Z54: 0 | AA54: 579.13 | AB54: 579.13 | AC54: 579.13
F55: 25655 · TIRE REPLACEMENT | H55: 0 | I55: 0 | J55: 0 | K55: 0 | L55: 0 | M55: 0 | N55: 0 | O55: 0 | P55: 0 | Q55: 0 | R55: 0 | S55: 0 | T55: 66.57 | U55: 66.57 | V55: 0 | W55: 66.57 | X55: 0 | Y55: 66.57 | Z55: 0 | AA55: 66.57 | AB55: 66.57 | AC55: 66.57
F56: 25660 · VEHICLE UPKEEP | H56: 0 | I56: 0 | J56: 0 | K56: 0 | L56: 0 | M56: 0 | N56: 0 | O56: 0 | P56: 0 | Q56: 0 | R56: 0 | S56: 0 | T56: 6.48 | U56: 6.48 | V56: 0 | W56: 6.48 | X56: 0 | Y56: 6.48 | Z56: 0 | AA56: 6.48 | AB56: 6.48 | AC56: 6.48
E57: Total 25590 · AUTO | H57: 0 | I57: 0 | J57: 0 | K57: 0 | L57: 200 | M57: 200 | N57: 25.52 | O57: 225.52 | P57: 110 | Q57: 335.52 | R57: 80 | S57: 415.52 | T57: 223.05 | U57: 638.57 | V57: 764.13 | W57: 1402.7 | X57: 104.82 | Y57: 1507.52 | Z57: 0 | AA57: 1507.52 | AB57: 1507.52 | AC57: 1507.52
E58: 26000 · MARKETING & ADVERTISING
F59: 26006 · MEMBERSHIPS | H59: 0 | I59: 0 | J59: 0 | K59: 0 | L59: 0 | M59: 0 | N59: 0 | O59: 0 | P59: 0 | Q59: 0 | R59: 0 | S59: 0 | T59: 0 | U59: 0 | V59: 0 | W59: 0 | X59: 986.7 | Y59: 986.7 | Z59: 0 | AA59: 986.7 | AB59: 986.7 | AC59: 986.7
E60: Total 26000 · MARKETING & ADVERTISING | H60: 0 | I60: 0 | J60: 0 | K60: 0 | L60: 0 | M60: 0 | N60: 0 | O60: 0 | P60: 0 | Q60: 0 | R60: 0 | S60: 0 | T60: 0 | U60: 0 | V60: 0 | W60: 0 | X60: 986.7 | Y60: 986.7 | Z60: 0 | AA60: 986.7 | AB60: 986.7 | AC60: 986.7
E61: 26180 · INSURANCE
F62: 26181 · PROPERTY INSURANCE | H62: 1466.6 | I62: 1466.6 | J62: 0 | K62: 1466.6 | L62: 951.77 | M62: 2418.37 | N62: 951.77 | O62: 3370.14 | P62: 1046.95 | Q62: 4417.09 | R62: 1046.95 | S62: 5464.04 | T62: 1046.95 | U62: 6510.99 | V62: 999.36 | W62: 7510.35 | X62: 999.36 | Y62: 8509.71 | Z62: 999.36 | AA62: 9509.07 | AB62: 9509.07 | AC62: 9509.07
F63: 26182 · GENERAL LIABILITY INSURANCE | H63: 1980.07 | I63: 1980.07 | J63: 0 | K63: 1980.07 | L63: 1271.15 | M63: 3251.22 | N63: 1271.15 | O63: 4522.37 | P63: 1461.83 | Q63: 5984.2 | R63: 1271.15 | S63: 7255.35 | T63: 1334.71 | U63: 8590.06 | V63: 1398.27 | W63: 9988.33 | X63: 1398.27 | Y63: 11386.6 | Z63: 1398.27 | AA63: 12784.87 | AB63: 12784.87 | AC63: 12784.87
E64: Total 26180 · INSURANCE | H64: 3446.67 | I64: 3446.67 | J64: 0 | K64: 3446.67 | L64: 2222.92 | M64: 5669.59 | N64: 2222.92 | O64: 7892.51 | P64: 2508.78 | Q64: 10401.29 | R64: 2318.1 | S64: 12719.39 | T64: 2381.66 | U64: 15101.05 | V64: 2397.63 | W64: 17498.68 | X64: 2397.63 | Y64: 19896.31 | Z64: 2397.63 | AA64: 22293.94 | AB64: 22293.94 | AC64: 22293.94
E65: 26270 · PROFESSIONAL FEES
F66: 26284 · COST REPORTS | H66: 398 | I66: 398 | J66: 398 | K66: 796 | L66: 398 | M66: 1194 | N66: 0 | O66: 1194 | P66: 0 | Q66: 1194 | R66: 310 | S66: 1504 | T66: 310 | U66: 1814 | V66: 310 | W66: 2124 | X66: 310 | Y66: 2434 | Z66: 0 | AA66: 2434 | AB66: 2434 | AC66: 2434
F67: 26289 · ACCOUNTING | H67: 1300 | I67: 1300 | J67: 1000 | K67: 2300 | L67: 1350 | M67: 3650 | N67: 1350 | O67: 5000 | P67: 1325 | Q67: 6325 | R67: 1300 | S67: 7625 | T67: 1300 | U67: 8925 | V67: 1300 | W67: 10225 | X67: 1350 | Y67: 11575 | Z67: 1300 | AA67: 12875 | AB67: 12875 | AC67: 12875
E68: Total 26270 · PROFESSIONAL FEES | H68: 1698 | I68: 1698 | J68: 1398 | K68: 3096 | L68: 1748 | M68: 4844 | N68: 1350 | O68: 6194 | P68: 1325 | Q68: 7519 | R68: 1610 | S68: 9129 | T68: 1610 | U68: 10739 | V68: 1610 | W68: 12349 | X68: 1660 | Y68: 14009 | Z68: 1300 | AA68: 15309 | AB68: 15309 | AC68: 15309
E69: 26300 · REPAIRS & MAINTENANCE
F70: 26310 · HVAC | H70: 0 | I70: 0 | J70: 0 | K70: 0 | L70: 0 | M70: 0 | N70: 0 | O70: 0 | P70: 0 | Q70: 0 | R70: 0 | S70: 0 | T70: 0 | U70: 0 | V70: 0 | W70: 0 | X70: 0 | Y70: 0 | Z70: 0 | AA70: 0 | AB70: 0 | AC70: 0
F71: 26320 · ELECTRICAL | H71: 0 | I71: 0 | J71: 0 | K71: 0 | L71: 300 | M71: 300 | N71: 0 | O71: 300 | P71: 0 | Q71: 300 | R71: 0 | S71: 300 | T71: 0 | U71: 300 | V71: 0 | W71: 300 | X71: 0 | Y71: 300 | Z71: 0 | AA71: 300 | AB71: 300 | AC71: 300
F72: 26340 · INTERIOR MAINTENANCE | H72: 0 | I72: 0 | J72: 140.71 | K72: 140.71 | L72: 14.02 | M72: 154.73 | N72: 42.57 | O72: 197.3 | P72: 0 | Q72: 197.3 | R72: 16.23 | S72: 213.53 | T72: 0 | U72: 213.53 | V72: 149.35 | W72: 362.88 | X72: 55.17 | Y72: 418.05 | Z72: 0 | AA72: 418.05 | AB72: 418.05 | AC72: 418.05
F73: 26350 · BUILDING MAINTENANCE | H73: 0 | I73: 0 | J73: 264.86 | K73: 264.86 | L73: 54.75 | M73: 319.61 | N73: 0 | O73: 319.61 | P73: 771.64 | Q73: 1091.25 | R73: 157.55 | S73: 1248.8 | T73: 0 | U73: 1248.8 | V73: 0 | W73: 1248.8 | X73: 0 | Y73: 1248.8 | Z73: 0 | AA73: 1248.8 | AB73: 1248.8 | AC73: 1248.8
F74: 26380 · KEYS/LOCKS | H74: 0 | I74: 0 | J74: 81.19 | K74: 81.19 | L74: 0 | M74: 81.19 | N74: 0 | O74: 81.19 | P74: 0 | Q74: 81.19 | R74: 0 | S74: 81.19 | T74: 81.19 | U74: 162.38 | V74: 0 | W74: 162.38 | X74: 0 | Y74: 162.38 | Z74: 0 | AA74: 162.38 | AB74: 162.38 | AC74: 162.38
E75: Total 26300 · REPAIRS & MAINTENANCE | H75: 0 | I75: 0 | J75: 486.76 | K75: 486.76 | L75: 368.77 | M75: 855.53 | N75: 42.57 | O75: 898.1 | P75: 771.64 | Q75: 1669.74 | R75: 173.78 | S75: 1843.52 | T75: 81.19 | U75: 1924.71 | V75: 149.35 | W75: 2074.06 | X75: 55.17 | Y75: 2129.23 | Z75: 0 | AA75: 2129.23 | AB75: 2129.23 | AC75: 2129.23
E76: 26550 · OFFICE COST
F77: 26551 · OFFICE SUPPLIES | H77: 0 | I77: 0 | J77: 0 | K77: 0 | L77: 0 | M77: 0 | N77: 58.92 | O77: 58.92 | P77: 0 | Q77: 58.92 | R77: 0 | S77: 58.92 | T77: 0 | U77: 58.92 | V77: 0 | W77: 58.92 | X77: 58.92 | Y77: 117.84 | Z77: 0 | AA77: 117.84 | AB77: 117.84 | AC77: 117.84
F78: 26553 · COPIER USAGE | H78: 0 | I78: 0 | J78: 0 | K78: 0 | L78: 0 | M78: 0 | N78: 0 | O78: 0 | P78: 0 | Q78: 0 | R78: 0 | S78: 0 | T78: 0 | U78: 0 | V78: 0 | W78: 0 | X78: 0 | Y78: 0 | Z78: -22 | AA78: -22 | AB78: -22 | AC78: -22
F79: 26554 · COMPUTERS | H79: 302.02 | I79: 302.02 | J79: 0 | K79: 302.02 | L79: 81.92 | M79: 383.94 | N79: 0 | O79: 383.94 | P79: 0 | Q79: 383.94 | R79: 1191.3 | S79: 1575.24 | T79: 210.57 | U79: 1785.81 | V79: 910.65 | W79: 2696.46 | X79: 0 | Y79: 2696.46 | Z79: 0 | AA79: 2696.46 | AB79: 2696.46 | AC79: 2696.46
F80: 26555 · TELEPHONE | H80: 0 | I80: 0 | J80: 2086.06 | K80: 2086.06 | L80: 2311.33 | M80: 4397.39 | N80: 0 | O80: 4397.39 | P80: 0 | Q80: 4397.39 | R80: 3375.94 | S80: 7773.33 | T80: 0 | U80: 7773.33 | V80: 2176.24 | W80: 9949.57 | X80: 0 | Y80: 9949.57 | Z80: 1065.5 | AA80: 11015.07 | AB80: 11015.07 | AC80: 11015.07
F81: 26558 · BANK CHARGES | H81: 51.4 | I81: 51.4 | J81: 77.2 | K81: 128.6 | L81: 177 | M81: 305.6 | N81: 48.08 | O81: 353.68 | P81: 248.5 | Q81: 602.18 | R81: 644.5 | S81: 1246.68 | T81: 261.27 | U81: 1507.95 | V81: 348.18 | W81: 1856.13 | X81: 370.7 | Y81: 2226.83 | Z81: 0 | AA81: 2226.83 | AB81: 2226.83 | AC81: 2226.83
F82: 26561 · LICENSING | H82: 552.41 | I82: 552.41 | J82: 15.59 | K82: 568 | L82: 0 | M82: 568 | N82: 0 | O82: 568 | P82: 0 | Q82: 568 | R82: 15.59 | S82: 583.59 | T82: 0 | U82: 583.59 | V82: 0 | W82: 583.59 | X82: 0 | Y82: 583.59 | Z82: 0 | AA82: 583.59 | AB82: 583.59 | AC82: 583.59
F83: 26562 · INTERNET CONNECTIONS | H83: 625.84 | I83: 625.84 | J83: 171.59 | K83: 797.43 | L83: 335.04 | M83: 1132.47 | N83: 345.04 | O83: 1477.51 | P83: 635.06 | Q83: 2112.57 | R83: 0 | S83: 2112.57 | T83: 670.08 | U83: 2782.65 | V83: 0 | W83: 2782.65 | X83: 670.08 | Y83: 3452.73 | Z83: 0 | AA83: 3452.73 | AB83: 3452.73 | AC83: 3452.73
F84: 26567 · POSTAGE EXPENSE | H84: 97.97 | I84: 97.97 | J84: 18.14 | K84: 116.11 | L84: 191.54 | M84: 307.65 | N84: 34.04 | O84: 341.69 | P84: 155.04 | Q84: 496.73 | R84: 34.04 | S84: 530.77 | T84: 141.74 | U84: 672.51 | V84: 87.39 | W84: 759.9 | X84: 158.77 | Y84: 918.67 | Z84: 52.7 | AA84: 971.37 | AB84: 971.37 | AC84: 971.37
F85: 26568 · TRANSPORTATION EXPENSE | H85: 0 | I85: 0 | J85: 18.4 | K85: 18.4 | L85: 0 | M85: 18.4 | N85: 46 | O85: 64.4 | P85: 73.6 | Q85: 138 | R85: 55.2 | S85: 193.2 | T85: 36.8 | U85: 230 | V85: 161.6 | W85: 391.6 | X85: 36.8 | Y85: 428.4 | Z85: 64.4 | AA85: 492.8 | AB85: 492.8 | AC85: 492.8
F86: 26574 · PRINTER SUPPLIES | H86: 35.92 | I86: 35.92 | J86: 41.11 | K86: 77.03 | L86: 0 | M86: 77.03 | N86: 0 | O86: 77.03 | P86: 0 | Q86: 77.03 | R86: 0 | S86: 77.03 | T86: 34.05 | U86: 111.08 | V86: 82.82 | W86: 193.9 | X86: 78.62 | Y86: 272.52 | Z86: 0 | AA86: 272.52 | AB86: 272.52 | AC86: 272.52
F87: 26578 · PROFESSIONAL DEVELOPMENT | H87: 0 | I87: 0 | J87: 173.91 | K87: 173.91 | L87: 0 | M87: 173.91 | N87: 0 | O87: 173.91 | P87: 0 | Q87: 173.91 | R87: 0 | S87: 173.91 | T87: 0 | U87: 173.91 | V87: 0 | W87: 173.91 | X87: 0 | Y87: 173.91 | Z87: 0 | AA87: 173.91 | AB87: 173.91 | AC87: 173.91
E88: Total 26550 · OFFICE COST | H88: 1665.56 | I88: 1665.56 | J88: 2602 | K88: 4267.56 | L88: 3096.83 | M88: 7364.39 | N88: 532.08 | O88: 7896.47 | P88: 1112.2 | Q88: 9008.67 | R88: 5316.57 | S88: 14325.24 | T88: 1354.51 | U88: 15679.75 | V88: 3766.88 | W88: 19446.63 | X88: 1373.89 | Y88: 20820.52 | Z88: 1160.6 | AA88: 21981.12 | AB88: 21981.12 | AC88: 21981.12
E89: 26600 · PAYROLL EXPENSES
F90: 26601 · MC EXPENSE | H90: 318.01 | I90: 318.01 | J90: 313.4 | K90: 631.41 | L90: 265.63 | M90: 897.04 | N90: 411.58 | O90: 1308.62 | P90: 291.68 | Q90: 1600.3 | R90: 303.04 | S90: 1903.34 | T90: 357.9 | U90: 2261.24 | V90: 1380.56 | W90: 3641.8 | X90: 429.31 | Y90: 4071.11 | Z90: 491.88 | AA90: 4562.99 | AB90: 4562.99 | AC90: 4562.99
F91: 26602 · SS EXPENSE | H91: 1359.71 | I91: 1359.71 | J91: 1340.1 | K91: 2699.81 | L91: 1135.85 | M91: 3835.66 | N91: 359.79 | O91: 4195.45 | P91: 1247.25 | Q91: 5442.7 | R91: 1295.72 | S91: 6738.42 | T91: 1530.37 | U91: 8268.79 | V91: 5627.3 | W91: 13896.09 | X91: 1835.62 | Y91: 15731.71 | Z91: 2103.14 | AA91: 17834.85 | AB91: 17834.85 | AC91: 17834.85
F92: 26603 · TWC EXPENSE | H92: 462.74 | I92: 462.74 | J92: 456.06 | K92: 918.8 | L92: 386.57 | M92: 1305.37 | N92: 534.95 | O92: 1840.32 | P92: 320.95 | Q92: 2161.27 | R92: 837.09 | S92: 2998.36 | T92: 462.97 | U92: 3461.33 | V92: 200.95 | W92: 3662.28 | X92: 207.06 | Y92: 3869.34 | Z92: 453.27 | AA92: 4322.61 | AB92: 4322.61 | AC92: 4322.61
F93: 26604 · FUTA EXPENSE | H93: 131.59 | I93: 131.59 | J93: 128.02 | K93: 259.61 | L93: 103.96 | M93: 363.57 | N93: 126.05 | O93: 489.62 | P93: 45.93 | Q93: 535.55 | R93: 33.19 | S93: 568.74 | T93: 45.7 | U93: 614.44 | V93: 44.56 | W93: 659 | X93: 56.39 | Y93: 715.39 | Z93: 76.78 | AA93: 792.17 | AB93: 792.17 | AC93: 792.17
F94: 26625 · SALARIES & WAGES | H94: 21931.01 | I94: 21931.01 | J94: 21614.73 | K94: 43545.74 | L94: 18320.15 | M94: 61865.89 | N94: 28383.33 | O94: 90249.22 | P94: 20116.83 | Q94: 110366.05 | R94: 20898.72 | S94: 131264.77 | T94: 24683.47 | U94: 155948.24 | V94: 26246.66 | W94: 182194.9 | X94: 29606.77 | Y94: 211801.67 | Z94: 33921.37 | AA94: 245723.04 | AB94: 245723.04 | AC94: 245723.04
F95: 26627 · WAGE GARNISHMENTS - HAWKINS | H95: 0 | I95: 0 | J95: 0 | K95: 0 | L95: 0 | M95: 0 | N95: 0 | O95: 0 | P95: 0 | Q95: 0 | R95: 0 | S95: 0 | T95: 0 | U95: 0 | V95: 0 | W95: 0 | X95: 0 | Y95: 0 | Z95: 0 | AA95: 0 | AB95: 0 | AC95: 0
E96: Total 26600 · PAYROLL EXPENSES | H96: 24203.06 | I96: 24203.06 | J96: 23852.31 | K96: 48055.37 | L96: 20212.16 | M96: 68267.53 | N96: 29815.7 | O96: 98083.23 | P96: 22022.64 | Q96: 120105.87 | R96: 23367.76 | S96: 143473.63 | T96: 27080.41 | U96: 170554.04 | V96: 33500.03 | W96: 204054.07 | X96: 32135.15 | Y96: 236189.22 | Z96: 37046.44 | AA96: 273235.66 | AB96: 273235.66 | AC96: 273235.66
E97: 26820 · TAXES
F98: 26856 · PAYROLL TAXES & PENALTIES | H98: 0 | I98: 0 | J98: 0 | K98: 0 | L98: 0 | M98: 0 | N98: 441.62 | O98: 441.62 | P98: 0 | Q98: 441.62 | R98: 0 | S98: 441.62 | T98: 0 | U98: 441.62 | V98: 0 | W98: 441.62 | X98: 0 | Y98: 441.62 | Z98: 0 | AA98: 441.62 | AB98: 441.62 | AC98: 441.62
E99: Total 26820 · TAXES | H99: 0 | I99: 0 | J99: 0 | K99: 0 | L99: 0 | M99: 0 | N99: 441.62 | O99: 441.62 | P99: 0 | Q99: 441.62 | R99: 0 | S99: 441.62 | T99: 0 | U99: 441.62 | V99: 0 | W99: 441.62 | X99: 0 | Y99: 441.62 | Z99: 0 | AA99: 441.62 | AB99: 441.62 | AC99: 441.62
E100: 26865 · STATE FINES & PENALTIES | H100: 0 | I100: 0 | J100: 0 | K100: 0 | L100: 3000 | M100: 3000 | N100: 0 | O100: 3000 | P100: 0 | Q100: 3000 | R100: 0 | S100: 3000 | T100: 0 | U100: 3000 | V100: 0 | W100: 3000 | X100: 0 | Y100: 3000 | Z100: 0 | AA100: 3000 | AB100: 3000 | AC100: 3000
E101: 26870 · UTILITIES
F102: 26875 · ELECTRICITY | H102: 1195.61 | I102: 1195.61 | J102: 1741.03 | K102: 2936.64 | L102: 1989.85 | M102: 4926.49 | N102: 206.32 | O102: 5132.81 | P102: 1451.18 | Q102: 6583.99 | R102: 2764.8 | S102: 9348.79 | T102: 2267.28 | U102: 11616.07 | V102: 2818.82 | W102: 14434.89 | X102: 328.69 | Y102: 14763.58 | Z102: 2445.14 | AA102: 17208.72 | AB102: 17208.72 | AC102: 17208.72
F103: 26880 · WATER | H103: 1208.88 | I103: 1208.88 | J103: 2214.33 | K103: 3423.21 | L103: 2238.67 | M103: 5661.88 | N103: 1455.64 | O103: 7117.52 | P103: 0 | Q103: 7117.52 | R103: 2337.66 | S103: 9455.18 | T103: 853.69 | U103: 10308.87 | V103: 929.92 | W103: 11238.79 | X103: 0 | Y103: 11238.79 | Z103: 977.42 | AA103: 12216.21 | AB103: 12216.21 | AC103: 12216.21
F104: 26885 · GAS | H104: 522.21 | I104: 522.21 | J104: 1723.6 | K104: 2245.81 | L104: 0 | M104: 2245.81 | N104: 1117.19 | O104: 3363 | P104: 278.32 | Q104: 3641.32 | R104: 288.3 | S104: 3929.62 | T104: 958.23 | U104: 4887.85 | V104: 369.09 | W104: 5256.94 | X104: 0 | Y104: 5256.94 | Z104: 0 | AA104: 5256.94 | AB104: 5256.94 | AC104: 5256.94
E105: Total 26870 · UTILITIES | H105: 2926.7 | I105: 2926.7 | J105: 5678.96 | K105: 8605.66 | L105: 4228.52 | M105: 12834.18 | N105: 2779.15 | O105: 15613.33 | P105: 1729.5 | Q105: 17342.83 | R105: 5390.76 | S105: 22733.59 | T105: 4079.2 | U105: 26812.79 | V105: 4117.83 | W105: 30930.62 | X105: 328.69 | Y105: 31259.31 | Z105: 3422.56 | AA105: 34681.87 | AB105: 34681.87 | AC105: 34681.87
E106: 4000 · Reconciliation Discrepancies | H106: 0 | I106: 0 | J106: 0 | K106: 0 | L106: 0 | M106: 0 | N106: -3881.2 | O106: -3881.2 | P106: -130 | Q106: -4011.2 | R106: 0 | S106: -4011.2 | T106: 0 | U106: -4011.2 | V106: -400 | W106: -4411.2 | X106: 1040.69 | Y106: -3370.51 | Z106: 0 | AA106: -3370.51 | AB106: -3370.51 | AC106: -3370.51
D107: Total Expense | H107: 41945.03 | I107: 41945.03 | J107: 49573.66 | K107: 91518.69 | L107: 40109.63 | M107: 131628.32 | N107: 53976.12 | O107: 185604.44 | P107: 48183.75 | Q107: 233788.19 | R107: 56167.1 | S107: 289955.29 | T107: 57766.06 | U107: 347721.35 | V107: 66308.5 | W107: 414029.85 | X107: 57185.24 | Y107: 471215.09 | Z107: 63430.03 | AA107: 534645.12 | AB107: 534645.12 | AC107: 534645.12
B108: Net Ordinary Income | H108: 12831.37 | I108: 12831.37 | J108: 665.25 | K108: 13496.62 | L108: -3903.27 | M108: 9593.35 | N108: -13183.97 | O108: -3590.62 | P108: -7632.95 | Q108: -11223.57 | R108: -14999.67 | S108: -26223.24 | T108: -7754.84 | U108: -33978.08 | V108: -5434.15 | W108: -39412.23 | X108: -11115.96 | Y108: -50528.19 | Z108: -14692.05 | AA108: -65220.24 | AB108: -65220.24 | AC108: -65220.24
A109: Net Income | H109: 12831.37 | I109: 12831.37 | J109: 665.25 | K109: 13496.62 | L109: -3903.27 | M109: 9593.35 | N109: -13183.97 | O109: -3590.62 | P109: -7632.95 | Q109: -11223.57 | R109: -14999.67 | S109: -26223.24 | T109: -7754.84 | U109: -33978.08 | V109: -5434.15 | W109: -39412.23 | X109: -11115.96 | Y109: -50528.19 | Z109: -14692.05 | AA109: -65220.24 | AB109: -65220.24 | AC109: -65220.24
